{"text_format":"1","workbook":"xlsx","n_sheets":18,"sheets":["Permanto","Hevonen","Renkaat","Hyppy","Nojapuut","Rekki","Tulokset","FinaaliPH","FinaaliRH","FinaaliNR","PermantoT","HevonenT","RenkaatT","HyppyT","NojapuutT","RekkiT","Asetukset","Tulostus"],"not_rendered":{"charts":0,"images":21,"macros":1,"external_links":0,"defined_names":22,"comments":0,"pivot_tables":0},"unopened":[],"bounds":{"document_bytes":16777216,"sheet_cells":100000,"rows_first":2000,"rows_last":500,"rows_between":2000,"halvings":0,"cell_chars":16384,"cell_head_chars":4096},"cells_cut":0,"cells_raw":0,"read":"whole","date_system":"1900"}

{"sheet":"Permanto","index":0,"n_rows":34,"n_cols":13,"rows_kept":34,"cut":false,"hidden":false,"merged":[[0,0,0,2]]}
["Permanto",null,null,null,null,null,null,null,null,null,null,null,""]
[0,"Nr","Nimi","Seura","suor","D","E1","E2","E3","E4","väh","E","Yhteensä"]
[1,102,"Heikki Niva","Espoon Telinetaiturit",null,null,null,null,null,null,null,{"$f":"IF(ISBLANK(J3),\"\",10-(SUM(G3:J3)-MIN(G3:J3)-MAX(G3:J3))/2)","v":""},{"$f":"IF(ISBLANK(J3),0,F3-K3+L3)","v":0}]
[2,103,"Ilkka Kuusela","Espoon Telinetaiturit",null,null,null,null,null,null,null,{"$f":"IF(ISBLANK(J4),\"\",10-(SUM(G4:J4)-MIN(G4:J4)-MAX(G4:J4))/2)","v":""},{"$f":"IF(ISBLANK(J4),0,F4-K4+L4)","v":0}]
[3,104,"Milo Siivonen","Espoon Telinetaiturit",null,null,null,null,null,null,null,{"$f":"IF(ISBLANK(J5),\"\",10-(SUM(G5:J5)-MIN(G5:J5)-MAX(G5:J5))/2)","v":""},{"$f":"IF(ISBLANK(J5),0,F5-K5+L5)","v":0}]
[4,105,"Oskar Kirmes","Espoon Telinetaiturit",null,null,null,null,null,null,null,"",0]
[5,106,"Henrik Petterson","Helsingfors Gymnastikklubb",null,null,null,null,null,null,null,"",0]
[6,107,"Artturi Lobski","Jyväskylän Voimistelijat",null,null,null,null,null,null,null,"",0]
[7,108,"Heikki Saarenketo","Jyväskylän Voimistelijat",null,null,null,null,null,null,null,"",0]
[8,109,"Janne Haapajoki","Jyväskylän Voimistelijat",null,null,null,null,null,null,null,"",0]
[9,110,"Jarkko Harju","Jyväskylän Voimistelijat",null,null,null,null,null,null,null,"",0]
[10,111,"Leevi Aihos","Jyväskylän Voimistelijat",null,null,null,null,null,null,null,"",0]
[11,112,"Pavel Titov","Jyväskylän Voimistelijat",null,null,null,null,null,null,null,"",0]
[12,113,"Sakari Vekki","Jyväskylän Voimistelijat",null,null,null,null,null,null,null,"",0]
[13,114,"Jimi Päivänen","Kotkan Telinevoimistelijat",null,null,null,null,null,null,null,"",0]
[14,115,"Markku Leinonen","Kotkan Telinevoimistelijat",null,null,null,null,null,null,null,"",0]
[15,116,"Arttu Kesti","Oulun Pyrintö",null,null,null,null,null,null,null,"",0]
[16,117,"Konsta Huuki","Oulun Pyrintö",null,null,null,null,null,null,null,"",0]
[17,118,"Kim Junna","Taipumattomat",null,null,null,null,null,null,null,"",0]
[18,119,"Mikael Miettinen","Tampereen Sisu",null,null,null,null,null,null,null,"",0]
[19,120,"Ville Hynninen","Tampereen Sisu",null,null,null,null,null,null,null,"",0]
[20,121,"Aaron Hotanen","Turun Pyrkivä",null,null,null,null,null,null,null,"",0]
[21,122,"Oz Ekholm","Turun Pyrkivä",null,null,null,null,null,null,null,"",0]
[22,123,"Samuel Oporta","Turun Pyrkivä",null,null,null,null,null,null,null,"",0]
[23,124,"Juho Kanerva","Turun Urheiluliitto",null,null,null,null,null,null,null,"",0]
[24,125,"Olli Kanerva","Turun Urheiluliitto",null,null,null,null,null,null,null,"",0]
[25,126,"Sami Aalto","Turun Urheiluliitto",null,null,null,null,null,null,null,"",0]
[26,127,"Aaro Lamberg","Voimisteluseura Helsinki",null,null,null,null,null,null,null,"",0]
[27,128,"Jouko Koskinen","Voimisteluseura Helsinki",null,null,null,null,null,null,null,"",0]
[28,129,"Kasper Holopainen","Voimisteluseura Helsinki",null,null,null,null,null,null,null,"",0]
[29,130,"Petrus Laulumaa","Voimisteluseura Helsinki",null,null,null,null,null,null,null,"",0]
[30,131,"Timo Niemelä","Voimisteluseura Helsinki",null,null,null,null,null,null,null,"",0]
[31,132,"Tomi Tuuha","Voimisteluseura Helsinki",null,null,null,null,null,null,null,"",0]
[32,133,"Jarkko Pekkanen","Voimisteluseura Keski-Uusimaa",null,null,null,null,null,null,null,"",0]

{"sheet":"Hevonen","index":1,"n_rows":34,"n_cols":13,"rows_kept":34,"cut":false,"hidden":false,"merged":[[0,0,0,2]]}
["Hevonen",null,null,null,null,null,null,null,null,null,null,null,""]
[0,"Nr","Nimi","Seura","suor","D","E1","E2","E3","E4","väh","E","Yhteensä"]
[1,102,"Heikki Niva","Espoon Telinetaiturit",null,null,null,null,null,null,null,{"$f":"IF(ISBLANK(J3),\"\",10-(SUM(G3:J3)-MIN(G3:J3)-MAX(G3:J3))/2)","v":""},{"$f":"IF(ISBLANK(J3),0,F3-K3+L3)","v":0}]
[2,103,"Ilkka Kuusela","Espoon Telinetaiturit",null,null,null,null,null,null,null,{"$f":"IF(ISBLANK(J4),\"\",10-(SUM(G4:J4)-MIN(G4:J4)-MAX(G4:J4))/2)","v":""},{"$f":"IF(ISBLANK(J4),0,F4-K4+L4)","v":0}]
[3,104,"Milo Siivonen","Espoon Telinetaiturit",null,null,null,null,null,null,null,{"$f":"IF(ISBLANK(J5),\"\",10-(SUM(G5:J5)-MIN(G5:J5)-MAX(G5:J5))/2)","v":""},{"$f":"IF(ISBLANK(J5),0,F5-K5+L5)","v":0}]
[4,105,"Oskar Kirmes","Espoon Telinetaiturit",null,null,null,null,null,null,null,"",0]
[5,106,"Henrik Petterson","Helsingfors Gymnastikklubb",null,null,null,null,null,null,null,"",0]
[6,107,"Artturi Lobski","Jyväskylän Voimistelijat",null,null,null,null,null,null,null,"",0]
[7,108,"Heikki Saarenketo","Jyväskylän Voimistelijat",null,null,null,null,null,null,null,"",0]
[8,109,"Janne Haapajoki","Jyväskylän Voimistelijat",null,null,null,null,null,null,null,"",0]
[9,110,"Jarkko Harju","Jyväskylän Voimistelijat",null,null,null,null,null,null,null,"",0]
[10,111,"Leevi Aihos","Jyväskylän Voimistelijat",null,null,null,null,null,null,null,"",0]
[11,112,"Pavel Titov","Jyväskylän Voimistelijat",null,null,null,null,null,null,null,"",0]
[12,113,"Sakari Vekki","Jyväskylän Voimistelijat",null,null,null,null,null,null,null,"",0]
[13,114,"Jimi Päivänen","Kotkan Telinevoimistelijat",null,null,null,null,null,null,null,"",0]
[14,115,"Markku Leinonen","Kotkan Telinevoimistelijat",null,null,null,null,null,null,null,"",0]
[15,116,"Arttu Kesti","Oulun Pyrintö",null,null,null,null,null,null,null,"",0]
[16,117,"Konsta Huuki","Oulun Pyrintö",null,null,null,null,null,null,null,"",0]
[17,118,"Kim Junna","Taipumattomat",null,null,null,null,null,null,null,"",0]
[18,119,"Mikael Miettinen","Tampereen Sisu",null,null,null,null,null,null,null,"",0]
[19,120,"Ville Hynninen","Tampereen Sisu",null,null,null,null,null,null,null,"",0]
[20,121,"Aaron Hotanen","Turun Pyrkivä",null,null,null,null,null,null,null,"",0]
[21,122,"Oz Ekholm","Turun Pyrkivä",null,null,null,null,null,null,null,"",0]
[22,123,"Samuel Oporta","Turun Pyrkivä",null,null,null,null,null,null,null,"",0]
[23,124,"Juho Kanerva","Turun Urheiluliitto",null,null,null,null,null,null,null,"",0]
[24,125,"Olli Kanerva","Turun Urheiluliitto",null,null,null,null,null,null,null,"",0]
[25,126,"Sami Aalto","Turun Urheiluliitto",null,null,null,null,null,null,null,"",0]
[26,127,"Aaro Lamberg","Voimisteluseura Helsinki",null,null,null,null,null,null,null,"",0]
[27,128,"Jouko Koskinen","Voimisteluseura Helsinki",null,null,null,null,null,null,null,"",0]
[28,129,"Kasper Holopainen","Voimisteluseura Helsinki",null,null,null,null,null,null,null,"",0]
[29,130,"Petrus Laulumaa","Voimisteluseura Helsinki",null,null,null,null,null,null,null,"",0]
[30,131,"Timo Niemelä","Voimisteluseura Helsinki",null,null,null,null,null,null,null,"",0]
[31,132,"Tomi Tuuha","Voimisteluseura Helsinki",null,null,null,null,null,null,null,"",0]
[32,133,"Jarkko Pekkanen","Voimisteluseura Keski-Uusimaa",null,null,null,null,null,null,null,"",0]

{"sheet":"Renkaat","index":2,"n_rows":34,"n_cols":13,"rows_kept":34,"cut":false,"hidden":false,"merged":[[0,0,0,2]]}
["Renkaat",null,null,null,null,null,null,null,null,null,null,null,""]
[0,"Nr","Nimi","Seura","suor","D","E1","E2","E3","E4","väh","E","Yhteensä"]
[1,102,"Heikki Niva","Espoon Telinetaiturit",null,null,null,null,null,null,null,{"$f":"IF(ISBLANK(J3),\"\",10-(SUM(G3:J3)-MIN(G3:J3)-MAX(G3:J3))/2)","v":""},{"$f":"IF(ISBLANK(J3),0,F3-K3+L3)","v":0}]
[2,103,"Ilkka Kuusela","Espoon Telinetaiturit",null,null,null,null,null,null,null,{"$f":"IF(ISBLANK(J4),\"\",10-(SUM(G4:J4)-MIN(G4:J4)-MAX(G4:J4))/2)","v":""},{"$f":"IF(ISBLANK(J4),0,F4-K4+L4)","v":0}]
[3,104,"Milo Siivonen","Espoon Telinetaiturit",null,null,null,null,null,null,null,{"$f":"IF(ISBLANK(J5),\"\",10-(SUM(G5:J5)-MIN(G5:J5)-MAX(G5:J5))/2)","v":""},{"$f":"IF(ISBLANK(J5),0,F5-K5+L5)","v":0}]
[4,105,"Oskar Kirmes","Espoon Telinetaiturit",null,null,null,null,null,null,null,"",0]
[5,106,"Henrik Petterson","Helsingfors Gymnastikklubb",null,null,null,null,null,null,null,"",0]
[6,107,"Artturi Lobski","Jyväskylän Voimistelijat",null,null,null,null,null,null,null,"",0]
[7,108,"Heikki Saarenketo","Jyväskylän Voimistelijat",null,null,null,null,null,null,null,"",0]
[8,109,"Janne Haapajoki","Jyväskylän Voimistelijat",null,null,null,null,null,null,null,"",0]
[9,110,"Jarkko Harju","Jyväskylän Voimistelijat",null,null,null,null,null,null,null,"",0]
[10,111,"Leevi Aihos","Jyväskylän Voimistelijat",null,null,null,null,null,null,null,"",0]
[11,112,"Pavel Titov","Jyväskylän Voimistelijat",null,null,null,null,null,null,null,"",0]
[12,113,"Sakari Vekki","Jyväskylän Voimistelijat",null,null,null,null,null,null,null,"",0]
[13,114,"Jimi Päivänen","Kotkan Telinevoimistelijat",null,null,null,null,null,null,null,"",0]
[14,115,"Markku Leinonen","Kotkan Telinevoimistelijat",null,null,null,null,null,null,null,"",0]
[15,116,"Arttu Kesti","Oulun Pyrintö",null,null,null,null,null,null,null,"",0]
[16,117,"Konsta Huuki","Oulun Pyrintö",null,null,null,null,null,null,null,"",0]
[17,118,"Kim Junna","Taipumattomat",null,null,null,null,null,null,null,"",0]
[18,119,"Mikael Miettinen","Tampereen Sisu",null,null,null,null,null,null,null,"",0]
[19,120,"Ville Hynninen","Tampereen Sisu",null,null,null,null,null,null,null,"",0]
[20,121,"Aaron Hotanen","Turun Pyrkivä",null,null,null,null,null,null,null,"",0]
[21,122,"Oz Ekholm","Turun Pyrkivä",null,null,null,null,null,null,null,"",0]
[22,123,"Samuel Oporta","Turun Pyrkivä",null,null,null,null,null,null,null,"",0]
[23,124,"Juho Kanerva","Turun Urheiluliitto",null,null,null,null,null,null,null,"",0]
[24,125,"Olli Kanerva","Turun Urheiluliitto",null,null,null,null,null,null,null,"",0]
[25,126,"Sami Aalto","Turun Urheiluliitto",null,null,null,null,null,null,null,"",0]
[26,127,"Aaro Lamberg","Voimisteluseura Helsinki",null,null,null,null,null,null,null,"",0]
[27,128,"Jouko Koskinen","Voimisteluseura Helsinki",null,null,null,null,null,null,null,"",0]
[28,129,"Kasper Holopainen","Voimisteluseura Helsinki",null,null,null,null,null,null,null,"",0]
[29,130,"Petrus Laulumaa","Voimisteluseura Helsinki",null,null,null,null,null,null,null,"",0]
[30,131,"Timo Niemelä","Voimisteluseura Helsinki",null,null,null,null,null,null,null,"",0]
[31,132,"Tomi Tuuha","Voimisteluseura Helsinki",null,null,null,null,null,null,null,"",0]
[32,133,"Jarkko Pekkanen","Voimisteluseura Keski-Uusimaa",null,null,null,null,null,null,null,"",0]

{"sheet":"Hyppy","index":3,"n_rows":34,"n_cols":23,"rows_kept":34,"cut":false,"hidden":false,"merged":[[0,0,0,2]]}
["Hyppy",null,null,null,null,"1",null,null,null,null,null,null,"",null,"2",null,null,null,null,null,null,""]
[0,"Nr","Nimi","Seura","suor","D","E1","E2","E3","E4","väh","E","Yhteensä",null,"D","E1","E2","E3","E4","väh","E","Yhteensä","Tulos"]
[1,102,"Heikki Niva","Espoon Telinetaiturit",null,null,null,null,null,null,null,{"$f":"IF(ISBLANK(J3),\"\",10-(SUM(G3:J3)-MIN(G3:J3)-MAX(G3:J3))/2)","v":""},{"$f":"IF(ISBLANK(J3),0,F3-K3+L3)","v":0},null,null,null,null,null,null,null,{"$f":"IF(ISBLANK(S3),\"\",10-(SUM(P3:S3)-MIN(P3:S3)-MAX(P3:S3))/2)","v":""},{"$f":"IF(ISBLANK(S3),0,O3-T3+U3)","v":0},{"$f":"IF(ISBLANK(S3),\"\",(M3+V3)/2)","v":""}]
[2,103,"Ilkka Kuusela","Espoon Telinetaiturit",null,null,null,null,null,null,null,{"$f":"IF(ISBLANK(J4),\"\",10-(SUM(G4:J4)-MIN(G4:J4)-MAX(G4:J4))/2)","v":""},{"$f":"IF(ISBLANK(J4),0,F4-K4+L4)","v":0},null,null,null,null,null,null,null,{"$f":"IF(ISBLANK(S4),\"\",10-(SUM(P4:S4)-MIN(P4:S4)-MAX(P4:S4))/2)","v":""},{"$f":"IF(ISBLANK(S4),0,O4-T4+U4)","v":0},{"$f":"IF(ISBLANK(S4),\"\",(M4+V4)/2)","v":""}]
[3,104,"Milo Siivonen","Espoon Telinetaiturit",null,null,null,null,null,null,null,{"$f":"IF(ISBLANK(J5),\"\",10-(SUM(G5:J5)-MIN(G5:J5)-MAX(G5:J5))/2)","v":""},{"$f":"IF(ISBLANK(J5),0,F5-K5+L5)","v":0},null,null,null,null,null,null,null,{"$f":"IF(ISBLANK(S5),\"\",10-(SUM(P5:S5)-MIN(P5:S5)-MAX(P5:S5))/2)","v":""},{"$f":"IF(ISBLANK(S5),0,O5-T5+U5)","v":0},""]
[4,105,"Oskar Kirmes","Espoon Telinetaiturit",null,null,null,null,null,null,null,"",0,null,null,null,null,null,null,null,"",0,""]
[5,106,"Henrik Petterson","Helsingfors Gymnastikklubb",null,null,null,null,null,null,null,"",0,null,null,null,null,null,null,null,"",0,""]
[6,107,"Artturi Lobski","Jyväskylän Voimistelijat",null,null,null,null,null,null,null,"",0,null,null,null,null,null,null,null,"",0,""]
[7,108,"Heikki Saarenketo","Jyväskylän Voimistelijat",null,null,null,null,null,null,null,"",0,null,null,null,null,null,null,null,"",0,""]
[8,109,"Janne Haapajoki","Jyväskylän Voimistelijat",null,null,null,null,null,null,null,"",0,null,null,null,null,null,null,null,"",0,""]
[9,110,"Jarkko Harju","Jyväskylän Voimistelijat",null,null,null,null,null,null,null,"",0,null,null,null,null,null,null,null,"",0,""]
[10,111,"Leevi Aihos","Jyväskylän Voimistelijat",null,null,null,null,null,null,null,"",0,null,null,null,null,null,null,null,"",0,""]
[11,112,"Pavel Titov","Jyväskylän Voimistelijat",null,null,null,null,null,null,null,"",0,null,null,null,null,null,null,null,"",0,""]
[12,113,"Sakari Vekki","Jyväskylän Voimistelijat",null,null,null,null,null,null,null,"",0,null,null,null,null,null,null,null,"",0,""]
[13,114,"Jimi Päivänen","Kotkan Telinevoimistelijat",null,null,null,null,null,null,null,"",0,null,null,null,null,null,null,null,"",0,""]
[14,115,"Markku Leinonen","Kotkan Telinevoimistelijat",null,null,null,null,null,null,null,"",0,null,null,null,null,null,null,null,"",0,""]
[15,116,"Arttu Kesti","Oulun Pyrintö",null,null,null,null,null,null,null,"",0,null,null,null,null,null,null,null,"",0,""]
[16,117,"Konsta Huuki","Oulun Pyrintö",null,null,null,null,null,null,null,"",0,null,null,null,null,null,null,null,"",0,""]
[17,118,"Kim Junna","Taipumattomat",null,null,null,null,null,null,null,"",0,null,null,null,null,null,null,null,"",0,""]
[18,119,"Mikael Miettinen","Tampereen Sisu",null,null,null,null,null,null,null,"",0,null,null,null,null,null,null,null,"",0,""]
[19,120,"Ville Hynninen","Tampereen Sisu",null,null,null,null,null,null,null,"",0,null,null,null,null,null,null,null,"",0,""]
[20,121,"Aaron Hotanen","Turun Pyrkivä",null,null,null,null,null,null,null,"",0,null,null,null,null,null,null,null,"",0,""]
[21,122,"Oz Ekholm","Turun Pyrkivä",null,null,null,null,null,null,null,"",0,null,null,null,null,null,null,null,"",0,""]
[22,123,"Samuel Oporta","Turun Pyrkivä",null,null,null,null,null,null,null,"",0,null,null,null,null,null,null,null,"",0,""]
[23,124,"Juho Kanerva","Turun Urheiluliitto",null,null,null,null,null,null,null,"",0,null,null,null,null,null,null,null,"",0,""]
[24,125,"Olli Kanerva","Turun Urheiluliitto",null,null,null,null,null,null,null,"",0,null,null,null,null,null,null,null,"",0,""]
[25,126,"Sami Aalto","Turun Urheiluliitto",null,null,null,null,null,null,null,"",0,null,null,null,null,null,null,null,"",0,""]
[26,127,"Aaro Lamberg","Voimisteluseura Helsinki",null,null,null,null,null,null,null,"",0,null,null,null,null,null,null,null,"",0,""]
[27,128,"Jouko Koskinen","Voimisteluseura Helsinki",null,null,null,null,null,null,null,"",0,null,null,null,null,null,null,null,"",0,""]
[28,129,"Kasper Holopainen","Voimisteluseura Helsinki",null,null,null,null,null,null,null,"",0,null,null,null,null,null,null,null,"",0,""]
[29,130,"Petrus Laulumaa","Voimisteluseura Helsinki",null,null,null,null,null,null,null,"",0,null,null,null,null,null,null,null,"",0,""]
[30,131,"Timo Niemelä","Voimisteluseura Helsinki",null,null,null,null,null,null,null,"",0,null,null,null,null,null,null,null,"",0,""]
[31,132,"Tomi Tuuha","Voimisteluseura Helsinki",null,null,null,null,null,null,null,"",0,null,null,null,null,null,null,null,"",0,""]
[32,133,"Jarkko Pekkanen","Voimisteluseura Keski-Uusimaa",null,null,null,null,null,null,null,"",0,null,null,null,null,null,null,null,"",0,""]

{"sheet":"Nojapuut","index":4,"n_rows":34,"n_cols":13,"rows_kept":34,"cut":false,"hidden":false,"merged":[[0,0,0,2]]}
["Nojapuut",null,null,null,null,null,null,null,null,null,null,null,""]
[0,"Nr","Nimi","Seura","suor","D","E1","E2","E3","E4","väh","E","Yhteensä"]
[1,102,"Heikki Niva","Espoon Telinetaiturit",null,null,null,null,null,null,null,{"$f":"IF(ISBLANK(J3),\"\",10-(SUM(G3:J3)-MIN(G3:J3)-MAX(G3:J3))/2)","v":""},{"$f":"IF(ISBLANK(J3),0,F3-K3+L3)","v":0}]
[2,103,"Ilkka Kuusela","Espoon Telinetaiturit",null,null,null,null,null,null,null,{"$f":"IF(ISBLANK(J4),\"\",10-(SUM(G4:J4)-MIN(G4:J4)-MAX(G4:J4))/2)","v":""},{"$f":"IF(ISBLANK(J4),0,F4-K4+L4)","v":0}]
[3,104,"Milo Siivonen","Espoon Telinetaiturit",null,null,null,null,null,null,null,{"$f":"IF(ISBLANK(J5),\"\",10-(SUM(G5:J5)-MIN(G5:J5)-MAX(G5:J5))/2)","v":""},{"$f":"IF(ISBLANK(J5),0,F5-K5+L5)","v":0}]
[4,105,"Oskar Kirmes","Espoon Telinetaiturit",null,null,null,null,null,null,null,"",0]
[5,106,"Henrik Petterson","Helsingfors Gymnastikklubb",null,null,null,null,null,null,null,"",0]
[6,107,"Artturi Lobski","Jyväskylän Voimistelijat",null,null,null,null,null,null,null,"",0]
[7,108,"Heikki Saarenketo","Jyväskylän Voimistelijat",null,null,null,null,null,null,null,"",0]
[8,109,"Janne Haapajoki","Jyväskylän Voimistelijat",null,null,null,null,null,null,null,"",0]
[9,110,"Jarkko Harju","Jyväskylän Voimistelijat",null,null,null,null,null,null,null,"",0]
[10,111,"Leevi Aihos","Jyväskylän Voimistelijat",null,null,null,null,null,null,null,"",0]
[11,112,"Pavel Titov","Jyväskylän Voimistelijat",null,null,null,null,null,null,null,"",0]
[12,113,"Sakari Vekki","Jyväskylän Voimistelijat",null,null,null,null,null,null,null,"",0]
[13,114,"Jimi Päivänen","Kotkan Telinevoimistelijat",null,null,null,null,null,null,null,"",0]
[14,115,"Markku Leinonen","Kotkan Telinevoimistelijat",null,null,null,null,null,null,null,"",0]
[15,116,"Arttu Kesti","Oulun Pyrintö",null,null,null,null,null,null,null,"",0]
[16,117,"Konsta Huuki","Oulun Pyrintö",null,null,null,null,null,null,null,"",0]
[17,118,"Kim Junna","Taipumattomat",null,null,null,null,null,null,null,"",0]
[18,119,"Mikael Miettinen","Tampereen Sisu",null,null,null,null,null,null,null,"",0]
[19,120,"Ville Hynninen","Tampereen Sisu",null,null,null,null,null,null,null,"",0]
[20,121,"Aaron Hotanen","Turun Pyrkivä",null,null,null,null,null,null,null,"",0]
[21,122,"Oz Ekholm","Turun Pyrkivä",null,null,null,null,null,null,null,"",0]
[22,123,"Samuel Oporta","Turun Pyrkivä",null,null,null,null,null,null,null,"",0]
[23,124,"Juho Kanerva","Turun Urheiluliitto",null,null,null,null,null,null,null,"",0]
[24,125,"Olli Kanerva","Turun Urheiluliitto",null,null,null,null,null,null,null,"",0]
[25,126,"Sami Aalto","Turun Urheiluliitto",null,null,null,null,null,null,null,"",0]
[26,127,"Aaro Lamberg","Voimisteluseura Helsinki",null,null,null,null,null,null,null,"",0]
[27,128,"Jouko Koskinen","Voimisteluseura Helsinki",null,null,null,null,null,null,null,"",0]
[28,129,"Kasper Holopainen","Voimisteluseura Helsinki",null,null,null,null,null,null,null,"",0]
[29,130,"Petrus Laulumaa","Voimisteluseura Helsinki",null,null,null,null,null,null,null,"",0]
[30,131,"Timo Niemelä","Voimisteluseura Helsinki",null,null,null,null,null,null,null,"",0]
[31,132,"Tomi Tuuha","Voimisteluseura Helsinki",null,null,null,null,null,null,null,"",0]
[32,133,"Jarkko Pekkanen","Voimisteluseura Keski-Uusimaa",null,null,null,null,null,null,null,"",0]

{"sheet":"Rekki","index":5,"n_rows":34,"n_cols":13,"rows_kept":34,"cut":false,"hidden":false,"merged":[[0,0,0,2]]}
["Rekki",null,null,null,null,null,null,null,null,null,null,null,""]
[0,"Nr","Nimi","Seura","suor","D","E1","E2","E3","E4","väh","E","Yhteensä"]
[1,102,"Heikki Niva","Espoon Telinetaiturit",null,null,null,null,null,null,null,{"$f":"IF(ISBLANK(J3),\"\",10-(SUM(G3:J3)-MIN(G3:J3)-MAX(G3:J3))/2)","v":""},{"$f":"IF(ISBLANK(J3),0,F3-K3+L3)","v":0}]
[2,103,"Ilkka Kuusela","Espoon Telinetaiturit",null,null,null,null,null,null,null,{"$f":"IF(ISBLANK(J4),\"\",10-(SUM(G4:J4)-MIN(G4:J4)-MAX(G4:J4))/2)","v":""},{"$f":"IF(ISBLANK(J4),0,F4-K4+L4)","v":0}]
[3,104,"Milo Siivonen","Espoon Telinetaiturit",null,null,null,null,null,null,null,{"$f":"IF(ISBLANK(J5),\"\",10-(SUM(G5:J5)-MIN(G5:J5)-MAX(G5:J5))/2)","v":""},{"$f":"IF(ISBLANK(J5),0,F5-K5+L5)","v":0}]
[4,105,"Oskar Kirmes","Espoon Telinetaiturit",null,null,null,null,null,null,null,"",0]
[5,106,"Henrik Petterson","Helsingfors Gymnastikklubb",null,null,null,null,null,null,null,"",0]
[6,107,"Artturi Lobski","Jyväskylän Voimistelijat",null,null,null,null,null,null,null,"",0]
[7,108,"Heikki Saarenketo","Jyväskylän Voimistelijat",null,null,null,null,null,null,null,"",0]
[8,109,"Janne Haapajoki","Jyväskylän Voimistelijat",null,null,null,null,null,null,null,"",0]
[9,110,"Jarkko Harju","Jyväskylän Voimistelijat",null,null,null,null,null,null,null,"",0]
[10,111,"Leevi Aihos","Jyväskylän Voimistelijat",null,null,null,null,null,null,null,"",0]
[11,112,"Pavel Titov","Jyväskylän Voimistelijat",null,null,null,null,null,null,null,"",0]
[12,113,"Sakari Vekki","Jyväskylän Voimistelijat",null,null,null,null,null,null,null,"",0]
[13,114,"Jimi Päivänen","Kotkan Telinevoimistelijat",null,null,null,null,null,null,null,"",0]
[14,115,"Markku Leinonen","Kotkan Telinevoimistelijat",null,null,null,null,null,null,null,"",0]
[15,116,"Arttu Kesti","Oulun Pyrintö",null,null,null,null,null,null,null,"",0]
[16,117,"Konsta Huuki","Oulun Pyrintö",null,null,null,null,null,null,null,"",0]
[17,118,"Kim Junna","Taipumattomat",null,null,null,null,null,null,null,"",0]
[18,119,"Mikael Miettinen","Tampereen Sisu",null,null,null,null,null,null,null,"",0]
[19,120,"Ville Hynninen","Tampereen Sisu",null,null,null,null,null,null,null,"",0]
[20,121,"Aaron Hotanen","Turun Pyrkivä",null,null,null,null,null,null,null,"",0]
[21,122,"Oz Ekholm","Turun Pyrkivä",null,null,null,null,null,null,null,"",0]
[22,123,"Samuel Oporta","Turun Pyrkivä",null,null,null,null,null,null,null,"",0]
[23,124,"Juho Kanerva","Turun Urheiluliitto",null,null,null,null,null,null,null,"",0]
[24,125,"Olli Kanerva","Turun Urheiluliitto",null,null,null,null,null,null,null,"",0]
[25,126,"Sami Aalto","Turun Urheiluliitto",null,null,null,null,null,null,null,"",0]
[26,127,"Aaro Lamberg","Voimisteluseura Helsinki",null,null,null,null,null,null,null,"",0]
[27,128,"Jouko Koskinen","Voimisteluseura Helsinki",null,null,null,null,null,null,null,"",0]
[28,129,"Kasper Holopainen","Voimisteluseura Helsinki",null,null,null,null,null,null,null,"",0]
[29,130,"Petrus Laulumaa","Voimisteluseura Helsinki",null,null,null,null,null,null,null,"",0]
[30,131,"Timo Niemelä","Voimisteluseura Helsinki",null,null,null,null,null,null,null,"",0]
[31,132,"Tomi Tuuha","Voimisteluseura Helsinki",null,null,null,null,null,null,null,"",0]
[32,133,"Jarkko Pekkanen","Voimisteluseura Keski-Uusimaa",null,null,null,null,null,null,null,"",0]

{"sheet":"Tulokset","index":6,"n_rows":36,"n_cols":19,"rows_kept":36,"cut":false,"hidden":false,"merged":[[2,0,2,2],[1,4,1,5],[0,4,0,5],[1,6,1,8],[1,15,1,16],[0,6,0,8],[0,15,0,16]]}
[1,null,{"$f":"IF(B1=\"\",\"\",VLOOKUP(B1,B5:Q36,2,FALSE))","v":""},null,{"$f":"IF($B1=\"\",\"\",VLOOKUP($B1,$B$5:$Q$36,($A1-1)*2+4,FALSE))","v":""},null,{"$f":"IF($B1=\"\",\"\",VLOOKUP($B1,$B$5:$Q$36,($A1-1)*2+5,FALSE))","v":""},null,null,null,null,null,null,null,null,{"$f":"IF($B1=\"\",\"\",VLOOKUP($B1,$B$5:$Q$36,16,FALSE))","v":""}]
[6,null,{"$f":"IF(B2=\"\",\"\",VLOOKUP(B2,B5:Q36,2,FALSE))","v":""},null,{"$f":"IF($B2=\"\",\"\",VLOOKUP($B2,$B$5:$Q$36,($A2-1)*2+4,FALSE))","v":""},null,{"$f":"IF($B2=\"\",\"\",VLOOKUP($B2,$B$5:$Q$36,($A2-1)*2+5,FALSE))","v":""},null,null,null,null,null,null,null,null,{"$f":"IF($B2=\"\",\"\",VLOOKUP($B2,$B$5:$Q$36,16,FALSE))","v":""}]
["Miesten 6-ottelu",null,null,null,"Permanto",{"$f":"Permanto!$M$1","v":""},"Hevonen",{"$f":"Hevonen!$M$1","v":""},"Renkaat",{"$f":"Renkaat!$M$1","v":""},"Hyppy",{"$f":"Hyppy!$M$1","v":""},"Nojapuut",{"$f":"Nojapuut!$M$1","v":""},"Rekki",{"$f":"Rekki!$M$1","v":""},null,"ero"]
[0,"Nr","Nimi","Seura","D","yht","D","yht","D","yht","D","yht","D","yht","D","yht","Yhteensä","kärkeen"]
[{"$f":"A4+1","v":1},104,"Milo Siivonen","EsTT",{"$f":"Permanto!$F$5","v":0},{"$f":"Permanto!$M$5","v":0},{"$f":"Hevonen!$F$5","v":0},{"$f":"Hevonen!$M$5","v":0},{"$f":"Renkaat!$F$5","v":0},{"$f":"Renkaat!$M$5","v":0},{"$f":"Hyppy!$F$5","v":0},{"$f":"Hyppy!$M$5","v":0},{"$f":"Nojapuut!$F$5","v":0},{"$f":"Nojapuut!$M$5","v":0},{"$f":"Rekki!$F$5","v":0},{"$f":"Rekki!$M$5","v":0},{"$f":"P5+N5+L5+J5+H5+F5","v":0},{"$f":"Q5-$Q$5","v":0}]
[{"$f":"A5+1","v":2},103,"Ilkka Kuusela","EsTT",{"$f":"Permanto!$F$4","v":0},{"$f":"Permanto!$M$4","v":0},{"$f":"Hevonen!$F$4","v":0},{"$f":"Hevonen!$M$4","v":0},{"$f":"Renkaat!$F$4","v":0},{"$f":"Renkaat!$M$4","v":0},{"$f":"Hyppy!$F$4","v":0},{"$f":"Hyppy!$M$4","v":0},{"$f":"Nojapuut!$F$4","v":0},{"$f":"Nojapuut!$M$4","v":0},{"$f":"Rekki!$F$4","v":0},{"$f":"Rekki!$M$4","v":0},{"$f":"P6+N6+L6+J6+H6+F6","v":0},0,{"$f":"IF((Q6=Q5),IF((Q6=0),\"\",\"tie\"),\"\")","v":""}]
[{"$f":"A6+1","v":3},102,"Heikki Niva","EsTT",{"$f":"Permanto!$F$3","v":0},{"$f":"Permanto!$M$3","v":0},{"$f":"Hevonen!$F$3","v":0},{"$f":"Hevonen!$M$3","v":0},{"$f":"Renkaat!$F$3","v":0},{"$f":"Renkaat!$M$3","v":0},{"$f":"Hyppy!$F$3","v":0},{"$f":"Hyppy!$M$3","v":0},{"$f":"Nojapuut!$F$3","v":0},{"$f":"Nojapuut!$M$3","v":0},{"$f":"Rekki!$F$3","v":0},{"$f":"Rekki!$M$3","v":0},{"$f":"P7+N7+L7+J7+H7+F7","v":0},0,""]
[{"$f":"A7+1","v":4},105,"Oskar Kirmes","EsTT",{"$f":"Permanto!$F$6","v":0},{"$f":"Permanto!$M$6","v":0},{"$f":"Hevonen!$F$6","v":0},{"$f":"Hevonen!$M$6","v":0},{"$f":"Renkaat!$F$6","v":0},{"$f":"Renkaat!$M$6","v":0},{"$f":"Hyppy!$F$6","v":0},{"$f":"Hyppy!$M$6","v":0},{"$f":"Nojapuut!$F$6","v":0},{"$f":"Nojapuut!$M$6","v":0},{"$f":"Rekki!$F$6","v":0},{"$f":"Rekki!$M$6","v":0},{"$f":"P8+N8+L8+J8+H8+F8","v":0},0,""]
[{"$f":"A8+1","v":5},106,"Henrik Petterson","HGK",{"$f":"Permanto!$F$7","v":0},{"$f":"Permanto!$M$7","v":0},{"$f":"Hevonen!$F$7","v":0},{"$f":"Hevonen!$M$7","v":0},{"$f":"Renkaat!$F$7","v":0},{"$f":"Renkaat!$M$7","v":0},{"$f":"Hyppy!$F$7","v":0},{"$f":"Hyppy!$M$7","v":0},{"$f":"Nojapuut!$F$7","v":0},{"$f":"Nojapuut!$M$7","v":0},{"$f":"Rekki!$F$7","v":0},{"$f":"Rekki!$M$7","v":0},{"$f":"P9+N9+L9+J9+H9+F9","v":0},0,""]
[{"$f":"A9+1","v":6},107,"Artturi Lobski","JyVo",{"$f":"Permanto!$F$8","v":0},{"$f":"Permanto!$M$8","v":0},{"$f":"Hevonen!$F$8","v":0},{"$f":"Hevonen!$M$8","v":0},{"$f":"Renkaat!$F$8","v":0},{"$f":"Renkaat!$M$8","v":0},{"$f":"Hyppy!$F$8","v":0},{"$f":"Hyppy!$M$8","v":0},{"$f":"Nojapuut!$F$8","v":0},{"$f":"Nojapuut!$M$8","v":0},{"$f":"Rekki!$F$8","v":0},{"$f":"Rekki!$M$8","v":0},{"$f":"P10+N10+L10+J10+H10+F10","v":0},0,""]
[{"$f":"A10+1","v":7},108,"Heikki Saarenketo","JyVo",{"$f":"Permanto!$F$9","v":0},{"$f":"Permanto!$M$9","v":0},{"$f":"Hevonen!$F$9","v":0},{"$f":"Hevonen!$M$9","v":0},{"$f":"Renkaat!$F$9","v":0},{"$f":"Renkaat!$M$9","v":0},{"$f":"Hyppy!$F$9","v":0},{"$f":"Hyppy!$M$9","v":0},{"$f":"Nojapuut!$F$9","v":0},{"$f":"Nojapuut!$M$9","v":0},{"$f":"Rekki!$F$9","v":0},{"$f":"Rekki!$M$9","v":0},{"$f":"P11+N11+L11+J11+H11+F11","v":0},0,""]
[{"$f":"A11+1","v":8},109,"Janne Haapajoki","JyVo",{"$f":"Permanto!$F$10","v":0},{"$f":"Permanto!$M$10","v":0},{"$f":"Hevonen!$F$10","v":0},{"$f":"Hevonen!$M$10","v":0},{"$f":"Renkaat!$F$10","v":0},{"$f":"Renkaat!$M$10","v":0},{"$f":"Hyppy!$F$10","v":0},{"$f":"Hyppy!$M$10","v":0},{"$f":"Nojapuut!$F$10","v":0},{"$f":"Nojapuut!$M$10","v":0},{"$f":"Rekki!$F$10","v":0},{"$f":"Rekki!$M$10","v":0},{"$f":"P12+N12+L12+J12+H12+F12","v":0},0,""]
[{"$f":"A12+1","v":9},110,"Jarkko Harju","JyVo",{"$f":"Permanto!$F$11","v":0},{"$f":"Permanto!$M$11","v":0},{"$f":"Hevonen!$F$11","v":0},{"$f":"Hevonen!$M$11","v":0},{"$f":"Renkaat!$F$11","v":0},{"$f":"Renkaat!$M$11","v":0},{"$f":"Hyppy!$F$11","v":0},{"$f":"Hyppy!$M$11","v":0},{"$f":"Nojapuut!$F$11","v":0},{"$f":"Nojapuut!$M$11","v":0},{"$f":"Rekki!$F$11","v":0},{"$f":"Rekki!$M$11","v":0},{"$f":"P13+N13+L13+J13+H13+F13","v":0},0,""]
[{"$f":"A13+1","v":10},111,"Leevi Aihos","JyVo",{"$f":"Permanto!$F$12","v":0},{"$f":"Permanto!$M$12","v":0},{"$f":"Hevonen!$F$12","v":0},{"$f":"Hevonen!$M$12","v":0},{"$f":"Renkaat!$F$12","v":0},{"$f":"Renkaat!$M$12","v":0},{"$f":"Hyppy!$F$12","v":0},{"$f":"Hyppy!$M$12","v":0},{"$f":"Nojapuut!$F$12","v":0},{"$f":"Nojapuut!$M$12","v":0},{"$f":"Rekki!$F$12","v":0},{"$f":"Rekki!$M$12","v":0},{"$f":"P14+N14+L14+J14+H14+F14","v":0},0,""]
[{"$f":"A14+1","v":11},112,"Pavel Titov","JyVo",{"$f":"Permanto!$F$13","v":0},{"$f":"Permanto!$M$13","v":0},{"$f":"Hevonen!$F$13","v":0},{"$f":"Hevonen!$M$13","v":0},{"$f":"Renkaat!$F$13","v":0},{"$f":"Renkaat!$M$13","v":0},{"$f":"Hyppy!$F$13","v":0},{"$f":"Hyppy!$M$13","v":0},{"$f":"Nojapuut!$F$13","v":0},{"$f":"Nojapuut!$M$13","v":0},{"$f":"Rekki!$F$13","v":0},{"$f":"Rekki!$M$13","v":0},{"$f":"P15+N15+L15+J15+H15+F15","v":0},0,""]
[{"$f":"A15+1","v":12},113,"Sakari Vekki","JyVo",{"$f":"Permanto!$F$14","v":0},{"$f":"Permanto!$M$14","v":0},{"$f":"Hevonen!$F$14","v":0},{"$f":"Hevonen!$M$14","v":0},{"$f":"Renkaat!$F$14","v":0},{"$f":"Renkaat!$M$14","v":0},{"$f":"Hyppy!$F$14","v":0},{"$f":"Hyppy!$M$14","v":0},{"$f":"Nojapuut!$F$14","v":0},{"$f":"Nojapuut!$M$14","v":0},{"$f":"Rekki!$F$14","v":0},{"$f":"Rekki!$M$14","v":0},{"$f":"P16+N16+L16+J16+H16+F16","v":0},0,""]
[{"$f":"A16+1","v":13},114,"Jimi Päivänen","KOTEVO",{"$f":"Permanto!$F$15","v":0},{"$f":"Permanto!$M$15","v":0},{"$f":"Hevonen!$F$15","v":0},{"$f":"Hevonen!$M$15","v":0},{"$f":"Renkaat!$F$15","v":0},{"$f":"Renkaat!$M$15","v":0},{"$f":"Hyppy!$F$15","v":0},{"$f":"Hyppy!$M$15","v":0},{"$f":"Nojapuut!$F$15","v":0},{"$f":"Nojapuut!$M$15","v":0},{"$f":"Rekki!$F$15","v":0},{"$f":"Rekki!$M$15","v":0},{"$f":"P17+N17+L17+J17+H17+F17","v":0},0,""]
[{"$f":"A17+1","v":14},115,"Markku Leinonen","KOTEVO",{"$f":"Permanto!$F$16","v":0},{"$f":"Permanto!$M$16","v":0},{"$f":"Hevonen!$F$16","v":0},{"$f":"Hevonen!$M$16","v":0},{"$f":"Renkaat!$F$16","v":0},{"$f":"Renkaat!$M$16","v":0},{"$f":"Hyppy!$F$16","v":0},{"$f":"Hyppy!$M$16","v":0},{"$f":"Nojapuut!$F$16","v":0},{"$f":"Nojapuut!$M$16","v":0},{"$f":"Rekki!$F$16","v":0},{"$f":"Rekki!$M$16","v":0},{"$f":"P18+N18+L18+J18+H18+F18","v":0},0,""]
[{"$f":"A18+1","v":15},116,"Arttu Kesti","OP",{"$f":"Permanto!$F$17","v":0},{"$f":"Permanto!$M$17","v":0},{"$f":"Hevonen!$F$17","v":0},{"$f":"Hevonen!$M$17","v":0},{"$f":"Renkaat!$F$17","v":0},{"$f":"Renkaat!$M$17","v":0},{"$f":"Hyppy!$F$17","v":0},{"$f":"Hyppy!$M$17","v":0},{"$f":"Nojapuut!$F$17","v":0},{"$f":"Nojapuut!$M$17","v":0},{"$f":"Rekki!$F$17","v":0},{"$f":"Rekki!$M$17","v":0},{"$f":"P19+N19+L19+J19+H19+F19","v":0},0,""]
[{"$f":"A19+1","v":16},117,"Konsta Huuki","OP",{"$f":"Permanto!$F$18","v":0},{"$f":"Permanto!$M$18","v":0},{"$f":"Hevonen!$F$18","v":0},{"$f":"Hevonen!$M$18","v":0},{"$f":"Renkaat!$F$18","v":0},{"$f":"Renkaat!$M$18","v":0},{"$f":"Hyppy!$F$18","v":0},{"$f":"Hyppy!$M$18","v":0},{"$f":"Nojapuut!$F$18","v":0},{"$f":"Nojapuut!$M$18","v":0},{"$f":"Rekki!$F$18","v":0},{"$f":"Rekki!$M$18","v":0},{"$f":"P20+N20+L20+J20+H20+F20","v":0},0,""]
[{"$f":"A20+1","v":17},118,"Kim Junna","Taip",{"$f":"Permanto!$F$19","v":0},{"$f":"Permanto!$M$19","v":0},{"$f":"Hevonen!$F$19","v":0},{"$f":"Hevonen!$M$19","v":0},{"$f":"Renkaat!$F$19","v":0},{"$f":"Renkaat!$M$19","v":0},{"$f":"Hyppy!$F$19","v":0},{"$f":"Hyppy!$M$19","v":0},{"$f":"Nojapuut!$F$19","v":0},{"$f":"Nojapuut!$M$19","v":0},{"$f":"Rekki!$F$19","v":0},{"$f":"Rekki!$M$19","v":0},{"$f":"P21+N21+L21+J21+H21+F21","v":0},0,""]
[{"$f":"A21+1","v":18},119,"Mikael Miettinen","TaSi",{"$f":"Permanto!$F$20","v":0},{"$f":"Permanto!$M$20","v":0},{"$f":"Hevonen!$F$20","v":0},{"$f":"Hevonen!$M$20","v":0},{"$f":"Renkaat!$F$20","v":0},{"$f":"Renkaat!$M$20","v":0},{"$f":"Hyppy!$F$20","v":0},{"$f":"Hyppy!$M$20","v":0},{"$f":"Nojapuut!$F$20","v":0},{"$f":"Nojapuut!$M$20","v":0},{"$f":"Rekki!$F$20","v":0},{"$f":"Rekki!$M$20","v":0},{"$f":"P22+N22+L22+J22+H22+F22","v":0},0,""]
[{"$f":"A22+1","v":19},120,"Ville Hynninen","TaSi",{"$f":"Permanto!$F$21","v":0},{"$f":"Permanto!$M$21","v":0},{"$f":"Hevonen!$F$21","v":0},{"$f":"Hevonen!$M$21","v":0},{"$f":"Renkaat!$F$21","v":0},{"$f":"Renkaat!$M$21","v":0},{"$f":"Hyppy!$F$21","v":0},{"$f":"Hyppy!$M$21","v":0},{"$f":"Nojapuut!$F$21","v":0},{"$f":"Nojapuut!$M$21","v":0},{"$f":"Rekki!$F$21","v":0},{"$f":"Rekki!$M$21","v":0},{"$f":"P23+N23+L23+J23+H23+F23","v":0},0,""]
[{"$f":"A23+1","v":20},121,"Aaron Hotanen","TuPy",{"$f":"Permanto!$F$22","v":0},{"$f":"Permanto!$M$22","v":0},{"$f":"Hevonen!$F$22","v":0},{"$f":"Hevonen!$M$22","v":0},{"$f":"Renkaat!$F$22","v":0},{"$f":"Renkaat!$M$22","v":0},{"$f":"Hyppy!$F$22","v":0},{"$f":"Hyppy!$M$22","v":0},{"$f":"Nojapuut!$F$22","v":0},{"$f":"Nojapuut!$M$22","v":0},{"$f":"Rekki!$F$22","v":0},{"$f":"Rekki!$M$22","v":0},{"$f":"P24+N24+L24+J24+H24+F24","v":0},0,""]
[{"$f":"A24+1","v":21},122,"Oz Ekholm","TuPy",{"$f":"Permanto!$F$23","v":0},{"$f":"Permanto!$M$23","v":0},{"$f":"Hevonen!$F$23","v":0},{"$f":"Hevonen!$M$23","v":0},{"$f":"Renkaat!$F$23","v":0},{"$f":"Renkaat!$M$23","v":0},{"$f":"Hyppy!$F$23","v":0},{"$f":"Hyppy!$M$23","v":0},{"$f":"Nojapuut!$F$23","v":0},{"$f":"Nojapuut!$M$23","v":0},{"$f":"Rekki!$F$23","v":0},{"$f":"Rekki!$M$23","v":0},{"$f":"P25+N25+L25+J25+H25+F25","v":0},0,""]
[{"$f":"A25+1","v":22},123,"Samuel Oporta","TuPy",{"$f":"Permanto!$F$24","v":0},{"$f":"Permanto!$M$24","v":0},{"$f":"Hevonen!$F$24","v":0},{"$f":"Hevonen!$M$24","v":0},{"$f":"Renkaat!$F$24","v":0},{"$f":"Renkaat!$M$24","v":0},{"$f":"Hyppy!$F$24","v":0},{"$f":"Hyppy!$M$24","v":0},{"$f":"Nojapuut!$F$24","v":0},{"$f":"Nojapuut!$M$24","v":0},{"$f":"Rekki!$F$24","v":0},{"$f":"Rekki!$M$24","v":0},{"$f":"P26+N26+L26+J26+H26+F26","v":0},0,""]
[{"$f":"A26+1","v":23},124,"Juho Kanerva","TuUL",{"$f":"Permanto!$F$25","v":0},{"$f":"Permanto!$M$25","v":0},{"$f":"Hevonen!$F$25","v":0},{"$f":"Hevonen!$M$25","v":0},{"$f":"Renkaat!$F$25","v":0},{"$f":"Renkaat!$M$25","v":0},{"$f":"Hyppy!$F$25","v":0},{"$f":"Hyppy!$M$25","v":0},{"$f":"Nojapuut!$F$25","v":0},{"$f":"Nojapuut!$M$25","v":0},{"$f":"Rekki!$F$25","v":0},{"$f":"Rekki!$M$25","v":0},{"$f":"P27+N27+L27+J27+H27+F27","v":0},0,""]
[{"$f":"A27+1","v":24},125,"Olli Kanerva","TuUL",{"$f":"Permanto!$F$26","v":0},{"$f":"Permanto!$M$26","v":0},{"$f":"Hevonen!$F$26","v":0},{"$f":"Hevonen!$M$26","v":0},{"$f":"Renkaat!$F$26","v":0},{"$f":"Renkaat!$M$26","v":0},{"$f":"Hyppy!$F$26","v":0},{"$f":"Hyppy!$M$26","v":0},{"$f":"Nojapuut!$F$26","v":0},{"$f":"Nojapuut!$M$26","v":0},{"$f":"Rekki!$F$26","v":0},{"$f":"Rekki!$M$26","v":0},{"$f":"P28+N28+L28+J28+H28+F28","v":0},0,""]
[{"$f":"A28+1","v":25},126,"Sami Aalto","TuUL",{"$f":"Permanto!$F$27","v":0},{"$f":"Permanto!$M$27","v":0},{"$f":"Hevonen!$F$27","v":0},{"$f":"Hevonen!$M$27","v":0},{"$f":"Renkaat!$F$27","v":0},{"$f":"Renkaat!$M$27","v":0},{"$f":"Hyppy!$F$27","v":0},{"$f":"Hyppy!$M$27","v":0},{"$f":"Nojapuut!$F$27","v":0},{"$f":"Nojapuut!$M$27","v":0},{"$f":"Rekki!$F$27","v":0},{"$f":"Rekki!$M$27","v":0},{"$f":"P29+N29+L29+J29+H29+F29","v":0},0,""]
[{"$f":"A29+1","v":26},127,"Aaro Lamberg","VSH",{"$f":"Permanto!$F$28","v":0},{"$f":"Permanto!$M$28","v":0},{"$f":"Hevonen!$F$28","v":0},{"$f":"Hevonen!$M$28","v":0},{"$f":"Renkaat!$F$28","v":0},{"$f":"Renkaat!$M$28","v":0},{"$f":"Hyppy!$F$28","v":0},{"$f":"Hyppy!$M$28","v":0},{"$f":"Nojapuut!$F$28","v":0},{"$f":"Nojapuut!$M$28","v":0},{"$f":"Rekki!$F$28","v":0},{"$f":"Rekki!$M$28","v":0},{"$f":"P30+N30+L30+J30+H30+F30","v":0},0,""]
[{"$f":"A30+1","v":27},128,"Jouko Koskinen","VSH",{"$f":"Permanto!$F$29","v":0},{"$f":"Permanto!$M$29","v":0},{"$f":"Hevonen!$F$29","v":0},{"$f":"Hevonen!$M$29","v":0},{"$f":"Renkaat!$F$29","v":0},{"$f":"Renkaat!$M$29","v":0},{"$f":"Hyppy!$F$29","v":0},{"$f":"Hyppy!$M$29","v":0},{"$f":"Nojapuut!$F$29","v":0},{"$f":"Nojapuut!$M$29","v":0},{"$f":"Rekki!$F$29","v":0},{"$f":"Rekki!$M$29","v":0},{"$f":"P31+N31+L31+J31+H31+F31","v":0},0,""]
[{"$f":"A31+1","v":28},129,"Kasper Holopainen","VSH",{"$f":"Permanto!$F$30","v":0},{"$f":"Permanto!$M$30","v":0},{"$f":"Hevonen!$F$30","v":0},{"$f":"Hevonen!$M$30","v":0},{"$f":"Renkaat!$F$30","v":0},{"$f":"Renkaat!$M$30","v":0},{"$f":"Hyppy!$F$30","v":0},{"$f":"Hyppy!$M$30","v":0},{"$f":"Nojapuut!$F$30","v":0},{"$f":"Nojapuut!$M$30","v":0},{"$f":"Rekki!$F$30","v":0},{"$f":"Rekki!$M$30","v":0},{"$f":"P32+N32+L32+J32+H32+F32","v":0},0,""]
[{"$f":"A32+1","v":29},130,"Petrus Laulumaa","VSH",{"$f":"Permanto!$F$31","v":0},{"$f":"Permanto!$M$31","v":0},{"$f":"Hevonen!$F$31","v":0},{"$f":"Hevonen!$M$31","v":0},{"$f":"Renkaat!$F$31","v":0},{"$f":"Renkaat!$M$31","v":0},{"$f":"Hyppy!$F$31","v":0},{"$f":"Hyppy!$M$31","v":0},{"$f":"Nojapuut!$F$31","v":0},{"$f":"Nojapuut!$M$31","v":0},{"$f":"Rekki!$F$31","v":0},{"$f":"Rekki!$M$31","v":0},{"$f":"P33+N33+L33+J33+H33+F33","v":0},null,""]
[{"$f":"A33+1","v":30},131,"Timo Niemelä","VSH",{"$f":"Permanto!$F$32","v":0},{"$f":"Permanto!$M$32","v":0},{"$f":"Hevonen!$F$32","v":0},{"$f":"Hevonen!$M$32","v":0},{"$f":"Renkaat!$F$32","v":0},{"$f":"Renkaat!$M$32","v":0},{"$f":"Hyppy!$F$32","v":0},{"$f":"Hyppy!$M$32","v":0},{"$f":"Nojapuut!$F$32","v":0},{"$f":"Nojapuut!$M$32","v":0},{"$f":"Rekki!$F$32","v":0},{"$f":"Rekki!$M$32","v":0},{"$f":"P34+N34+L34+J34+H34+F34","v":0},{"$f":"Q34-$Q$5","v":0},""]
[{"$f":"A34+1","v":31},132,"Tomi Tuuha","VSH",{"$f":"Permanto!$F$33","v":0},{"$f":"Permanto!$M$33","v":0},{"$f":"Hevonen!$F$33","v":0},{"$f":"Hevonen!$M$33","v":0},{"$f":"Renkaat!$F$33","v":0},{"$f":"Renkaat!$M$33","v":0},{"$f":"Hyppy!$F$33","v":0},{"$f":"Hyppy!$M$33","v":0},{"$f":"Nojapuut!$F$33","v":0},{"$f":"Nojapuut!$M$33","v":0},{"$f":"Rekki!$F$33","v":0},{"$f":"Rekki!$M$33","v":0},{"$f":"P35+N35+L35+J35+H35+F35","v":0},null,""]
[{"$f":"A35+1","v":32},133,"Jarkko Pekkanen","VSK-U",{"$f":"Permanto!$F$34","v":0},{"$f":"Permanto!$M$34","v":0},{"$f":"Hevonen!$F$34","v":0},{"$f":"Hevonen!$M$34","v":0},{"$f":"Renkaat!$F$34","v":0},{"$f":"Renkaat!$M$34","v":0},{"$f":"Hyppy!$F$34","v":0},{"$f":"Hyppy!$M$34","v":0},{"$f":"Nojapuut!$F$34","v":0},{"$f":"Nojapuut!$M$34","v":0},{"$f":"Rekki!$F$34","v":0},{"$f":"Rekki!$M$34","v":0},{"$f":"P36+N36+L36+J36+H36+F36","v":0},{"$f":"Q36-$Q$5","v":0},""]

{"sheet":"FinaaliPH","index":7,"n_rows":23,"n_cols":10,"rows_kept":23,"cut":false,"hidden":false,"merged":[[0,6,0,7],[1,0,1,2],[12,6,12,7],[13,0,13,2]]}
[1,null,{"$f":"IF(B1=\"\",\"\",VLOOKUP(B1,B4:H11,2,FALSE))","v":""},null,{"$f":"IF($B1=\"\",\"\",VLOOKUP($B1,$B4:$H11,4,FALSE))","v":""},null,{"$f":"IF($B1=\"\",\"\",VLOOKUP($B1,$B4:$H11,7,FALSE))","v":""}]
["Permanto",null,null,null,null,null,null,""]
[0,"Nr","Nimi","Seura","D","väh","E","Yhteensä"]
[1,10,"Toni Rajala",null,7,0,9,{"$f":"E4-F4+G4","v":16},null,{"$f":"IF((H4=H3),IF((H4=0),\"\",\"tie\"),\"\")","v":""}]
[2,8,"Teemu Selänne",null,3,0,9,12,null,""]
[3,11,"Saku Koivu",null,4,1,9,12,null,"tie"]
[4,22,"Ville Leino",null,2.2000000000000002,0.4,8.75,10.55,null,""]
[5,15,"Juha-Pekka Hytönen",null,2,0.5,8.85,10.35,null,""]
[6,12,"Jani Tuppurainen",null,1,0.3,8.6999999999999993,9.3999999999999986,null,""]
[7,1,"Kari Lehtonen",null,3,4,8.5,7.5,null,""]
[8,2,"Sami Salo",null,null,null,null,0,null,""]
[]
[1,null,{"$f":"IF(B13=\"\",\"\",VLOOKUP(B13,B16:H23,2,FALSE))","v":""},null,{"$f":"IF($B13=\"\",\"\",VLOOKUP($B13,$B16:$H23,4,FALSE))","v":""},null,{"$f":"IF($B13=\"\",\"\",VLOOKUP($B13,$B16:$H23,7,FALSE))","v":""}]
["Hevonen",null,null,null,null,null,null,""]
[0,"Nr","Nimi","Seura","D","väh","E","Yhteensä"]
[1,2,"Sami Salo",null,6,0,9.75,{"$f":"E16-F16+G16","v":15.75},null,{"$f":"IF((H16=H15),IF((H16=0),\"\",\"tie\"),\"\")","v":""}]
[2,10,"Toni Rajala",null,5,0,9,14,null,""]
[3,22,"Ville Leino",null,2,0,9,11,null,""]
[4,8,"Teemu Selänne",null,4,2,9,11,null,"tie"]
[5,1,"Kari Lehtonen",null,3,4,8.5,7.5,null,""]
[6,12,"Jani Tuppurainen",null,null,null,null,0,null,""]
[7,11,"Saku Koivu",null,null,null,null,0,null,""]
[8,15,"Juha-Pekka Hytönen",null,null,null,null,0,null,""]

{"sheet":"FinaaliRH","index":8,"n_rows":23,"n_cols":15,"rows_kept":23,"cut":false,"hidden":false,"merged":[[13,0,13,2],[0,6,0,7],[1,0,1,2],[12,6,12,7],[12,10,12,11],[12,12,12,13]]}
[1,2,{"$f":"IF(B1=\"\",\"\",VLOOKUP(B1,B4:H11,2,FALSE))","v":"Sami Salo"},null,{"$f":"IF($B1=\"\",\"\",VLOOKUP($B1,$B4:$H11,4,FALSE))","v":4},null,{"$f":"IF($B1=\"\",\"\",VLOOKUP($B1,$B4:$H11,7,FALSE))","v":10.6}]
["Renkaat",null,null,null,null,null,null,""]
[0,"Nr","Nimi","Seura","D","väh","E","Yhteensä"]
[1,2,"Sami Salo","STV",4,2,8.6,{"$f":"E4-F4+G4","v":10.6},null,{"$f":"IF((H4=H3),IF((H4=0),\"\",\"tie\"),\"\")","v":""}]
[2,10,"Toni Rajala","HTV",3.1,1,8,10.1,null,""]
[3,11,"Saku Koivu","HTV",2,1,8,9,null,""]
[4,1,"Kari Lehtonen","HTV",null,null,null,0,null,""]
[5,12,"Jani Tuppurainen","Jyvo",null,null,null,0,null,""]
[6,8,"Teemu Selänne","HTV",null,null,null,0,null,""]
[7,15,"Juha-Pekka Hytönen","Jyvo",null,null,null,0,null,""]
[8,22,"Ville Leino","STV",null,null,null,0,null,""]
[]
[1,22,{"$f":"IF(B13=\"\",\"\",VLOOKUP(B13,B16:H23,2,FALSE))","v":"Ville Leino"},null,{"$f":"IF($B13=\"\",\"\",VLOOKUP($B13,$B16:$H23,4,FALSE))","v":6.2},null,{"$f":"IF($B13=\"\",\"\",VLOOKUP($B13,$B16:$H23,7,FALSE))","v":14.9},null,{"$f":"IF($B13=\"\",\"\",VLOOKUP($B13,$B16:$M23,8,FALSE))","v":5.4},null,{"$f":"IF($B13=\"\",\"\",VLOOKUP($B13,$B16:$M23,11,FALSE))","v":14.450000000000001},null,{"$f":"IF($B13=\"\",\"\",VLOOKUP($B13,$B16:$M23,12,FALSE))","v":14.675000000000001}]
["Hyppy",null,null,null,null,"1",null,"",null,"2",null,"",null,null,{"$f":"IF((M14=M19),IF((M14=0),\"\",\"tie\"),\"\")","v":""}]
[0,"Nr","Nimi","Seura","D","väh","E","Yhteensä","D","väh","E","Yhteensä","Tulos"]
[1,22,"Ville Leino","STV",6.2,0.2,8.9,{"$f":"E16-F16+G16","v":14.9},5.4,0,9.0500000000000007,{"$f":"I16-J16+K16","v":14.450000000000001},{"$f":"(H16+L16)/2","v":14.675000000000001},null,{"$f":"IF((M16=M15),IF((M16=0),\"\",\"tie\"),\"\")","v":""}]
[2,23,"Ossi Louhivaara","Jyvo",4,0.1,7.95,{"$f":"E17-F17+G17","v":11.85},4.8,0,8.6,13.399999999999999,{"$f":"(H17+L17)/2","v":12.625},null,{"$f":"IF((M17=M16),IF((M17=0),\"\",\"tie\"),\"\")","v":""}]
[3,11,"Saku Koivu","HTV",4,0,9,13,2,0,9,11,12,null,{"$f":"IF((M18=M17),IF((M18=0),\"\",\"tie\"),\"\")","v":""}]
[4,10,"Toni Rajala","HTV",3,0,9,12,3,0,9,12,12,null,{"$f":"IF((M19=M18),IF((M19=0),\"\",\"tie\"),\"\")","v":"tie"}]
[5,8,"Teemu Selänne","HTV",4,0,9,13,2,0,9,11,12,null,{"$f":"IF((M20=M14),IF((M20=0),\"\",\"tie\"),\"\")","v":""}]
[6,21,"Teemu Eronen","HTV",2,0,9,11,4,0,8.9499999999999993,12.95,11.975,null,{"$f":"IF((M21=M20),IF((M21=0),\"\",\"tie\"),\"\")","v":""}]
[7,12,"Jani Tuppurainen","Jyvo",1.1000000000000001,1,9,9.1,4.0999999999999996,0,9,13.1,11.1,null,{"$f":"IF((M22=M21),IF((M22=0),\"\",\"tie\"),\"\")","v":""}]
[8,15,"Juha-Pekka Hytönen","Jyvo",1,1,8,8,null,null,null,0,4,null,{"$f":"IF((M23=M22),IF((M23=0),\"\",\"tie\"),\"\")","v":""}]

{"sheet":"FinaaliNR","index":9,"n_rows":23,"n_cols":10,"rows_kept":23,"cut":false,"hidden":false,"merged":[[0,6,0,7],[1,0,1,2],[12,6,12,7],[13,0,13,2]]}
[1,2,{"$f":"IF(B1=\"\",\"\",VLOOKUP(B1,B4:H11,2,FALSE))","v":"Sami Salo"},null,{"$f":"IF($B1=\"\",\"\",VLOOKUP($B1,$B4:$H11,4,FALSE))","v":4.8},null,{"$f":"IF($B1=\"\",\"\",VLOOKUP($B1,$B4:$H11,7,FALSE))","v":13.850000000000001}]
["Nojapuut",null,null,null,null,null,null,""]
[0,"Nr","Nimi","Seura","D","väh","E","Yhteensä"]
[1,2,"Sami Salo",null,4.8,0,9.0500000000000007,{"$f":"E4-F4+G4","v":13.850000000000001},null,{"$f":"IF((H4=H3),IF((H4=0),\"\",\"tie\"),\"\")","v":""}]
[2,11,"Saku Koivu",null,1.1000000000000001,1,8,8.1,null,""]
[3,10,"Toni Rajala",null,null,null,null,0,null,""]
[4,1,"Kari Lehtonen",null,null,null,null,0,null,""]
[5,12,"Jani Tuppurainen",null,null,null,null,0,null,""]
[6,8,"Teemu Selänne",null,null,null,null,0,null,""]
[7,15,"Juha-Pekka Hytönen",null,null,null,null,0,null,""]
[8,22,"Ville Leino",null,null,null,null,0,null,""]
[]
[1,22,{"$f":"IF(B13=\"\",\"\",VLOOKUP(B13,B16:H23,2,FALSE))","v":"Ville Leino"},null,{"$f":"IF($B13=\"\",\"\",VLOOKUP($B13,$B16:$H23,4,FALSE))","v":1.2},null,{"$f":"IF($B13=\"\",\"\",VLOOKUP($B13,$B16:$H23,7,FALSE))","v":10.199999999999999}]
["Rekki",null,null,null,null,null,null,""]
[0,"Nr","Nimi","Seura","D","väh","E","Yhteensä"]
[1,22,"Ville Leino",null,1.2,0,9,{"$f":"E16-F16+G16","v":10.199999999999999},null,{"$f":"IF((H16=H15),IF((H16=0),\"\",\"tie\"),\"\")","v":""}]
[2,10,"Toni Rajala",null,null,null,null,{"$f":"E17-F17+G17","v":0},null,""]
[3,1,"Kari Lehtonen",null,null,null,null,{"$f":"E18-F18+G18","v":0},null,""]
[4,12,"Jani Tuppurainen",null,null,null,null,{"$f":"E19-F19+G19","v":0},null,""]
[5,2,"Sami Salo",null,null,null,null,{"$f":"E20-F20+G20","v":0},null,""]
[6,11,"Saku Koivu",null,null,null,null,{"$f":"E21-F21+G21","v":0},null,""]
[7,8,"Teemu Selänne",null,null,null,null,{"$f":"E22-F22+G22","v":0},null,""]
[8,15,"Juha-Pekka Hytönen",null,null,null,null,{"$f":"E23-F23+G23","v":0},null,""]

{"sheet":"PermantoT","index":10,"n_rows":36,"n_cols":10,"rows_kept":36,"cut":false,"hidden":false,"merged":[[1,6,1,7],[1,10,1,11],[1,14,1,15],[2,0,2,2]]}
[null,null,null,"Suomen                            mestaruuskilpailut            Jyväskylä 17.4.2011"]
[{"$f":"H3","v":""}]
["Permanto",null,null,null,null,null,null,""]
[0,"Nr","Nimi","Seura","D","väh","E","Yhteensä"]
[1,102,"Heikki Niva","Espoon Telinetaiturit",null,null,null,null,null,{"$f":"IF((H5=H4),IF((H5=0),\"\",\"tie\"),\"\")","v":""}]
[2,103,"Ilkka Kuusela","Espoon Telinetaiturit",null,null,null,null,null,""]
[3,104,"Milo Siivonen","Espoon Telinetaiturit",null,null,null,null,null,""]
[4,105,"Oskar Kirmes","Espoon Telinetaiturit",null,null,null,null,null,""]
[5,106,"Henrik Petterson","Helsingfors Gymnastikklubb",null,null,null,null,null,""]
[6,107,"Artturi Lobski","Jyväskylän Voimistelijat",null,null,null,null,null,""]
[7,108,"Heikki Saarenketo","Jyväskylän Voimistelijat",null,null,null,null,null,""]
[8,109,"Janne Haapajoki","Jyväskylän Voimistelijat",null,null,null,null,null,""]
[9,110,"Jarkko Harju","Jyväskylän Voimistelijat",null,null,null,null,null,""]
[10,111,"Leevi Aihos","Jyväskylän Voimistelijat",null,null,null,null,null,""]
[11,112,"Pavel Titov","Jyväskylän Voimistelijat",null,null,null,null,null,""]
[12,113,"Sakari Vekki","Jyväskylän Voimistelijat",null,null,null,null,null,""]
[13,114,"Jimi Päivänen","Kotkan Telinevoimistelijat",null,null,null,null,null,""]
[14,115,"Markku Leinonen","Kotkan Telinevoimistelijat",null,null,null,null,null,""]
[15,116,"Arttu Kesti","Oulun Pyrintö",null,null,null,null,null,""]
[16,117,"Konsta Huuki","Oulun Pyrintö",null,null,null,null,null,""]
[17,118,"Kim Junna","Taipumattomat",null,null,null,null,null,""]
[18,119,"Mikael Miettinen","Tampereen Sisu",null,null,null,null,null,""]
[19,120,"Ville Hynninen","Tampereen Sisu",null,null,null,null,null,""]
[20,121,"Aaron Hotanen","Turun Pyrkivä",null,null,null,null,null,""]
[21,122,"Oz Ekholm","Turun Pyrkivä",null,null,null,null,null,""]
[22,123,"Samuel Oporta","Turun Pyrkivä",null,null,null,null,null,""]
[23,124,"Juho Kanerva","Turun Urheiluliitto",null,null,null,null,null,""]
[24,125,"Olli Kanerva","Turun Urheiluliitto",null,null,null,null,null,""]
[25,126,"Sami Aalto","Turun Urheiluliitto",null,null,null,null,null,""]
[26,127,"Aaro Lamberg","Voimisteluseura Helsinki",null,null,null,null,null,""]
[27,128,"Jouko Koskinen","Voimisteluseura Helsinki",null,null,null,null,null,""]
[28,129,"Kasper Holopainen","Voimisteluseura Helsinki",null,null,null,null,null,""]
[29,130,"Petrus Laulumaa","Voimisteluseura Helsinki",null,null,null,null,null,""]
[30,131,"Timo Niemelä","Voimisteluseura Helsinki",null,null,null,null,null,""]
[31,132,"Tomi Tuuha","Voimisteluseura Helsinki",null,null,null,null,null,""]
[32,133,"Jarkko Pekkanen","Voimisteluseura Keski-Uusimaa",null,null,null,null,null,""]

{"sheet":"HevonenT","index":11,"n_rows":52,"n_cols":10,"rows_kept":52,"cut":false,"hidden":false,"merged":[[1,6,1,7],[1,10,1,11],[1,14,1,15],[2,0,2,2]]}
[null,null,null,"Suomen                            mestaruuskilpailut            Jyväskylä 17.4.2011"]
[{"$f":"H3","v":""}]
["Hevonen",null,null,null,null,null,null,""]
[0,"Nr","Nimi","Seura","D","väh","E","Yhteensä"]
[1,102,"Heikki Niva","Espoon Telinetaiturit",null,null,null,null,null,{"$f":"IF((H5=H4),IF((H5=0),\"\",\"tie\"),\"\")","v":""}]
[2,103,"Ilkka Kuusela","Espoon Telinetaiturit",null,null,null,null,null,""]
[3,104,"Milo Siivonen","Espoon Telinetaiturit",null,null,null,null,null,""]
[4,105,"Oskar Kirmes","Espoon Telinetaiturit",null,null,null,null,null,""]
[5,106,"Henrik Petterson","Helsingfors Gymnastikklubb",null,null,null,null,null,""]
[6,107,"Artturi Lobski","Jyväskylän Voimistelijat",null,null,null,null,null,""]
[7,108,"Heikki Saarenketo","Jyväskylän Voimistelijat",null,null,null,null,null,""]
[8,109,"Janne Haapajoki","Jyväskylän Voimistelijat",null,null,null,null,null,""]
[9,110,"Jarkko Harju","Jyväskylän Voimistelijat",null,null,null,null,null,""]
[10,111,"Leevi Aihos","Jyväskylän Voimistelijat",null,null,null,null,null,""]
[11,112,"Pavel Titov","Jyväskylän Voimistelijat",null,null,null,null,null,""]
[12,113,"Sakari Vekki","Jyväskylän Voimistelijat",null,null,null,null,null,""]
[13,114,"Jimi Päivänen","Kotkan Telinevoimistelijat",null,null,null,null,null,""]
[14,115,"Markku Leinonen","Kotkan Telinevoimistelijat",null,null,null,null,null,""]
[15,116,"Arttu Kesti","Oulun Pyrintö",null,null,null,null,null,""]
[16,117,"Konsta Huuki","Oulun Pyrintö",null,null,null,null,null,""]
[17,118,"Kim Junna","Taipumattomat",null,null,null,null,null,""]
[18,119,"Mikael Miettinen","Tampereen Sisu",null,null,null,null,null,""]
[19,120,"Ville Hynninen","Tampereen Sisu",null,null,null,null,null,""]
[20,121,"Aaron Hotanen","Turun Pyrkivä",null,null,null,null,null,""]
[21,122,"Oz Ekholm","Turun Pyrkivä",null,null,null,null,null,""]
[22,123,"Samuel Oporta","Turun Pyrkivä",null,null,null,null,null,""]
[23,124,"Juho Kanerva","Turun Urheiluliitto",null,null,null,null,null,""]
[24,125,"Olli Kanerva","Turun Urheiluliitto",null,null,null,null,null,""]
[25,126,"Sami Aalto","Turun Urheiluliitto",null,null,null,null,null,""]
[26,127,"Aaro Lamberg","Voimisteluseura Helsinki",null,null,null,null,null,""]
[27,128,"Jouko Koskinen","Voimisteluseura Helsinki",null,null,null,null,null,""]
[28,129,"Kasper Holopainen","Voimisteluseura Helsinki",null,null,null,null,null,""]
[29,130,"Petrus Laulumaa","Voimisteluseura Helsinki",null,null,null,null,null,""]
[30,131,"Timo Niemelä","Voimisteluseura Helsinki",null,null,null,null,null,""]
[31,132,"Tomi Tuuha","Voimisteluseura Helsinki",null,null,null,null,null,""]
[32,133,"Jarkko Pekkanen","Voimisteluseura Keski-Uusimaa",null,null,null,null,null,""]
[null,null,null,null,null,null,null,null,null,""]
[null,null,null,null,null,null,null,null,null,""]
[null,null,null,null,null,null,null,null,null,""]
[null,null,null,null,null,null,null,null,null,""]
[null,null,null,null,null,null,null,null,null,""]
[null,null,null,null,null,null,null,null,null,""]
[null,null,null,null,null,null,null,null,null,""]
[null,null,null,null,null,null,null,null,null,""]
[null,null,null,null,null,null,null,null,null,""]
[null,null,null,null,null,null,null,null,null,""]
[null,null,null,null,null,null,null,null,null,""]
[null,null,null,null,null,null,null,null,null,""]
[null,null,null,null,null,null,null,null,null,""]
[null,null,null,null,null,null,null,null,null,""]
[null,null,null,null,null,null,null,null,null,""]
[null,null,null,null,null,null,null,null,null,""]

{"sheet":"RenkaatT","index":12,"n_rows":52,"n_cols":10,"rows_kept":52,"cut":false,"hidden":false,"merged":[[1,6,1,7],[2,0,2,2]]}
[null,null,null,"Suomen                            mestaruuskilpailut            Jyväskylä 17.4.2011"]
[{"$f":"H3","v":""}]
["Renkaat",null,null,null,null,null,null,""]
[0,"Nr","Nimi","Seura","D","väh","E","Yhteensä"]
[1,102,"Heikki Niva","Espoon Telinetaiturit",null,null,null,null,null,{"$f":"IF((H5=H4),IF((H5=0),\"\",\"tie\"),\"\")","v":""}]
[2,103,"Ilkka Kuusela","Espoon Telinetaiturit",null,null,null,null,null,""]
[3,104,"Milo Siivonen","Espoon Telinetaiturit",null,null,null,null,null,""]
[4,105,"Oskar Kirmes","Espoon Telinetaiturit",null,null,null,null,null,""]
[5,106,"Henrik Petterson","Helsingfors Gymnastikklubb",null,null,null,null,null,""]
[6,107,"Artturi Lobski","Jyväskylän Voimistelijat",null,null,null,null,null,""]
[7,108,"Heikki Saarenketo","Jyväskylän Voimistelijat",null,null,null,null,null,""]
[8,109,"Janne Haapajoki","Jyväskylän Voimistelijat",null,null,null,null,null,""]
[9,110,"Jarkko Harju","Jyväskylän Voimistelijat",null,null,null,null,null,""]
[10,111,"Leevi Aihos","Jyväskylän Voimistelijat",null,null,null,null,null,""]
[11,112,"Pavel Titov","Jyväskylän Voimistelijat",null,null,null,null,null,""]
[12,113,"Sakari Vekki","Jyväskylän Voimistelijat",null,null,null,null,null,""]
[13,114,"Jimi Päivänen","Kotkan Telinevoimistelijat",null,null,null,null,null,""]
[14,115,"Markku Leinonen","Kotkan Telinevoimistelijat",null,null,null,null,null,""]
[15,116,"Arttu Kesti","Oulun Pyrintö",null,null,null,null,null,""]
[16,117,"Konsta Huuki","Oulun Pyrintö",null,null,null,null,null,""]
[17,118,"Kim Junna","Taipumattomat",null,null,null,null,null,""]
[18,119,"Mikael Miettinen","Tampereen Sisu",null,null,null,null,null,""]
[19,120,"Ville Hynninen","Tampereen Sisu",null,null,null,null,null,""]
[20,121,"Aaron Hotanen","Turun Pyrkivä",null,null,null,null,null,""]
[21,122,"Oz Ekholm","Turun Pyrkivä",null,null,null,null,null,""]
[22,123,"Samuel Oporta","Turun Pyrkivä",null,null,null,null,null,""]
[23,124,"Juho Kanerva","Turun Urheiluliitto",null,null,null,null,null,""]
[24,125,"Olli Kanerva","Turun Urheiluliitto",null,null,null,null,null,""]
[25,126,"Sami Aalto","Turun Urheiluliitto",null,null,null,null,null,""]
[26,127,"Aaro Lamberg","Voimisteluseura Helsinki",null,null,null,null,null,""]
[27,128,"Jouko Koskinen","Voimisteluseura Helsinki",null,null,null,null,null,""]
[28,129,"Kasper Holopainen","Voimisteluseura Helsinki",null,null,null,null,null,""]
[29,130,"Petrus Laulumaa","Voimisteluseura Helsinki",null,null,null,null,null,""]
[30,131,"Timo Niemelä","Voimisteluseura Helsinki",null,null,null,null,null,""]
[31,132,"Tomi Tuuha","Voimisteluseura Helsinki",null,null,null,null,null,""]
[32,133,"Jarkko Pekkanen","Voimisteluseura Keski-Uusimaa",null,null,null,null,null,""]
[null,null,null,null,null,null,null,null,null,""]
[null,null,null,null,null,null,null,null,null,""]
[null,null,null,null,null,null,null,null,null,""]
[null,null,null,null,null,null,null,null,null,""]
[null,null,null,null,null,null,null,null,null,""]
[null,null,null,null,null,null,null,null,null,""]
[null,null,null,null,null,null,null,null,null,""]
[null,null,null,null,null,null,null,null,null,""]
[null,null,null,null,null,null,null,null,null,""]
[null,null,null,null,null,null,null,null,null,""]
[null,null,null,null,null,null,null,null,null,""]
[null,null,null,null,null,null,null,null,null,""]
[null,null,null,null,null,null,null,null,null,""]
[null,null,null,null,null,null,null,null,null,""]
[null,null,null,null,null,null,null,null,null,""]
[null,null,null,null,null,null,null,null,null,""]

{"sheet":"HyppyT","index":13,"n_rows":52,"n_cols":15,"rows_kept":52,"cut":false,"hidden":false,"merged":[[0,3,0,7],[1,6,1,7],[1,10,1,11],[1,12,1,13],[1,14,1,15],[2,0,2,2]]}
[null,null,null,"Suomen                            mestaruuskilpailut            Jyväskylä 17.4.2011"]
[{"$f":"H3","v":""}]
["Hyppy",null,null,null,null,"1",null,"",null,"2",null,""]
["sij","Nr","Nimi","Seura","D","väh","E","Yhteensä","D","väh","E","Yhteensä","Tulos"]
[1,102,"Heikki Niva","Espoon Telinetaiturit",null,null,null,null,null,null,null,null,{"$f":"(H5+L5)/2","v":0},null,{"$f":"IF((M5=M4),IF((M5=0),\"\",\"tie\"),\"\")","v":""}]
[2,103,"Ilkka Kuusela","Espoon Telinetaiturit",null,null,null,null,null,null,null,null,0,null,""]
[3,104,"Milo Siivonen","Espoon Telinetaiturit",null,null,null,null,null,null,null,null,0,null,""]
[4,105,"Oskar Kirmes","Espoon Telinetaiturit",null,null,null,null,null,null,null,null,0,null,""]
[5,106,"Henrik Petterson","Helsingfors Gymnastikklubb",null,null,null,null,null,null,null,null,0,null,""]
[6,107,"Artturi Lobski","Jyväskylän Voimistelijat",null,null,null,null,null,null,null,null,0,null,""]
[7,108,"Heikki Saarenketo","Jyväskylän Voimistelijat",null,null,null,null,null,null,null,null,0,null,""]
[8,109,"Janne Haapajoki","Jyväskylän Voimistelijat",null,null,null,null,null,null,null,null,0,null,""]
[9,110,"Jarkko Harju","Jyväskylän Voimistelijat",null,null,null,null,null,null,null,null,0,null,""]
[10,111,"Leevi Aihos","Jyväskylän Voimistelijat",null,null,null,null,null,null,null,null,0,null,""]
[11,112,"Pavel Titov","Jyväskylän Voimistelijat",null,null,null,null,null,null,null,null,0,null,""]
[12,113,"Sakari Vekki","Jyväskylän Voimistelijat",null,null,null,null,null,null,null,null,0,null,""]
[13,114,"Jimi Päivänen","Kotkan Telinevoimistelijat",null,null,null,null,null,null,null,null,0,null,""]
[14,115,"Markku Leinonen","Kotkan Telinevoimistelijat",null,null,null,null,null,null,null,null,0,null,""]
[15,116,"Arttu Kesti","Oulun Pyrintö",null,null,null,null,null,null,null,null,0,null,""]
[16,117,"Konsta Huuki","Oulun Pyrintö",null,null,null,null,null,null,null,null,0,null,""]
[17,118,"Kim Junna","Taipumattomat",null,null,null,null,null,null,null,null,0,null,""]
[18,119,"Mikael Miettinen","Tampereen Sisu",null,null,null,null,null,null,null,null,0,null,""]
[19,120,"Ville Hynninen","Tampereen Sisu",null,null,null,null,null,null,null,null,0,null,""]
[20,121,"Aaron Hotanen","Turun Pyrkivä",null,null,null,null,null,null,null,null,0,null,""]
[21,122,"Oz Ekholm","Turun Pyrkivä",null,null,null,null,null,null,null,null,0,null,""]
[22,123,"Samuel Oporta","Turun Pyrkivä",null,null,null,null,null,null,null,null,0,null,""]
[23,124,"Juho Kanerva","Turun Urheiluliitto",null,null,null,null,null,null,null,null,0,null,""]
[24,125,"Olli Kanerva","Turun Urheiluliitto",null,null,null,null,null,null,null,null,0,null,""]
[25,126,"Sami Aalto","Turun Urheiluliitto",null,null,null,null,null,null,null,null,0,null,""]
[26,127,"Aaro Lamberg","Voimisteluseura Helsinki",null,null,null,null,null,null,null,null,0,null,""]
[27,128,"Jouko Koskinen","Voimisteluseura Helsinki",null,null,null,null,null,null,null,null,0,null,""]
[28,129,"Kasper Holopainen","Voimisteluseura Helsinki",null,null,null,null,null,null,null,null,0,null,""]
[29,130,"Petrus Laulumaa","Voimisteluseura Helsinki",null,null,null,null,null,null,null,null,0,null,""]
[30,131,"Timo Niemelä","Voimisteluseura Helsinki",null,null,null,null,null,null,null,null,0,null,""]
[31,132,"Tomi Tuuha","Voimisteluseura Helsinki",null,null,null,null,null,null,null,null,null,null,""]
[32,133,"Jarkko Pekkanen","Voimisteluseura Keski-Uusimaa",null,null,null,null,null,null,null,null,null,null,""]
[]
[]
[]
[]
[]
[]
[]
[]
[]
[]
[]
[]
[]
[]
[null,null,null,null,null,null,null,null,null,{"$f":"IF((H51=H50),IF((H51=0),\"\",\"tie\"),\"\")","v":""}]
[null,null,null,null,null,null,null,null,null,{"$f":"IF((H52=H51),IF((H52=0),\"\",\"tie\"),\"\")","v":""}]

{"sheet":"NojapuutT","index":14,"n_rows":52,"n_cols":10,"rows_kept":52,"cut":false,"hidden":false,"merged":[[1,6,1,7],[2,0,2,2]]}
[null,null,null,"Suomen                            mestaruuskilpailut            Jyväskylä 17.4.2011"]
[{"$f":"H3","v":""}]
["Nojapuut",null,null,null,null,null,null,""]
[0,"Nr","Nimi","Seura","D","väh","E","Yhteensä"]
[1,102,"Heikki Niva","Espoon Telinetaiturit",null,null,null,null,null,{"$f":"IF((H5=H4),IF((H5=0),\"\",\"tie\"),\"\")","v":""}]
[2,103,"Ilkka Kuusela","Espoon Telinetaiturit",null,null,null,null,null,""]
[3,104,"Milo Siivonen","Espoon Telinetaiturit",null,null,null,null,null,""]
[4,105,"Oskar Kirmes","Espoon Telinetaiturit",null,null,null,null,null,""]
[5,106,"Henrik Petterson","Helsingfors Gymnastikklubb",null,null,null,null,null,""]
[6,107,"Artturi Lobski","Jyväskylän Voimistelijat",null,null,null,null,null,""]
[7,108,"Heikki Saarenketo","Jyväskylän Voimistelijat",null,null,null,null,null,""]
[8,109,"Janne Haapajoki","Jyväskylän Voimistelijat",null,null,null,null,null,""]
[9,110,"Jarkko Harju","Jyväskylän Voimistelijat",null,null,null,null,null,""]
[10,111,"Leevi Aihos","Jyväskylän Voimistelijat",null,null,null,null,null,""]
[11,112,"Pavel Titov","Jyväskylän Voimistelijat",null,null,null,null,null,""]
[12,113,"Sakari Vekki","Jyväskylän Voimistelijat",null,null,null,null,null,""]
[13,114,"Jimi Päivänen","Kotkan Telinevoimistelijat",null,null,null,null,null,""]
[14,115,"Markku Leinonen","Kotkan Telinevoimistelijat",null,null,null,null,null,""]
[15,116,"Arttu Kesti","Oulun Pyrintö",null,null,null,null,null,""]
[16,117,"Konsta Huuki","Oulun Pyrintö",null,null,null,null,null,""]
[17,118,"Kim Junna","Taipumattomat",null,null,null,null,null,""]
[18,119,"Mikael Miettinen","Tampereen Sisu",null,null,null,null,null,""]
[19,120,"Ville Hynninen","Tampereen Sisu",null,null,null,null,null,""]
[20,121,"Aaron Hotanen","Turun Pyrkivä",null,null,null,null,null,""]
[21,122,"Oz Ekholm","Turun Pyrkivä",null,null,null,null,null,""]
[22,123,"Samuel Oporta","Turun Pyrkivä",null,null,null,null,null,""]
[23,124,"Juho Kanerva","Turun Urheiluliitto",null,null,null,null,null,""]
[24,125,"Olli Kanerva","Turun Urheiluliitto",null,null,null,null,null,""]
[25,126,"Sami Aalto","Turun Urheiluliitto",null,null,null,null,null,""]
[26,127,"Aaro Lamberg","Voimisteluseura Helsinki",null,null,null,null,null,""]
[27,128,"Jouko Koskinen","Voimisteluseura Helsinki",null,null,null,null,null,""]
[28,129,"Kasper Holopainen","Voimisteluseura Helsinki",null,null,null,null,null,""]
[29,130,"Petrus Laulumaa","Voimisteluseura Helsinki",null,null,null,null,null,""]
[30,131,"Timo Niemelä","Voimisteluseura Helsinki",null,null,null,null,null,""]
[31,132,"Tomi Tuuha","Voimisteluseura Helsinki",null,null,null,null,null,""]
[32,133,"Jarkko Pekkanen","Voimisteluseura Keski-Uusimaa",null,null,null,null,null,""]
[null,null,null,null,null,null,null,null,null,""]
[null,null,null,null,null,null,null,null,null,""]
[null,null,null,null,null,null,null,null,null,""]
[null,null,null,null,null,null,null,null,null,""]
[null,null,null,null,null,null,null,null,null,""]
[null,null,null,null,null,null,null,null,null,""]
[null,null,null,null,null,null,null,null,null,""]
[null,null,null,null,null,null,null,null,null,""]
[null,null,null,null,null,null,null,null,null,""]
[null,null,null,null,null,null,null,null,null,""]
[null,null,null,null,null,null,null,null,null,""]
[null,null,null,null,null,null,null,null,null,""]
[null,null,null,null,null,null,null,null,null,""]
[null,null,null,null,null,null,null,null,null,""]
[null,null,null,null,null,null,null,null,null,""]
[null,null,null,null,null,null,null,null,null,""]

{"sheet":"RekkiT","index":15,"n_rows":52,"n_cols":10,"rows_kept":52,"cut":false,"hidden":false,"merged":[[1,6,1,7],[2,0,2,2]]}
[null,null,null,"Suomen                            mestaruuskilpailut            Jyväskylä 17.4.2011"]
[{"$f":"H3","v":""}]
["Rekki",null,null,null,null,null,null,""]
[0,"Nr","Nimi","Seura","D","väh","E","Yhteensä"]
[1,102,"Heikki Niva","Espoon Telinetaiturit",null,null,null,null,null,{"$f":"IF((H5=H4),IF((H5=0),\"\",\"tie\"),\"\")","v":""}]
[2,103,"Ilkka Kuusela","Espoon Telinetaiturit",null,null,null,null,null,""]
[3,104,"Milo Siivonen","Espoon Telinetaiturit",null,null,null,null,null,""]
[4,105,"Oskar Kirmes","Espoon Telinetaiturit",null,null,null,null,null,""]
[5,106,"Henrik Petterson","Helsingfors Gymnastikklubb",null,null,null,null,null,""]
[6,107,"Artturi Lobski","Jyväskylän Voimistelijat",null,null,null,null,null,""]
[7,108,"Heikki Saarenketo","Jyväskylän Voimistelijat",null,null,null,null,null,""]
[8,109,"Janne Haapajoki","Jyväskylän Voimistelijat",null,null,null,null,null,""]
[9,110,"Jarkko Harju","Jyväskylän Voimistelijat",null,null,null,null,null,""]
[10,111,"Leevi Aihos","Jyväskylän Voimistelijat",null,null,null,null,null,""]
[11,112,"Pavel Titov","Jyväskylän Voimistelijat",null,null,null,null,null,""]
[12,113,"Sakari Vekki","Jyväskylän Voimistelijat",null,null,null,null,null,""]
[13,114,"Jimi Päivänen","Kotkan Telinevoimistelijat",null,null,null,null,null,""]
[14,115,"Markku Leinonen","Kotkan Telinevoimistelijat",null,null,null,null,null,""]
[15,116,"Arttu Kesti","Oulun Pyrintö",null,null,null,null,null,""]
[16,117,"Konsta Huuki","Oulun Pyrintö",null,null,null,null,null,""]
[17,118,"Kim Junna","Taipumattomat",null,null,null,null,null,""]
[18,119,"Mikael Miettinen","Tampereen Sisu",null,null,null,null,null,""]
[19,120,"Ville Hynninen","Tampereen Sisu",null,null,null,null,null,""]
[20,121,"Aaron Hotanen","Turun Pyrkivä",null,null,null,null,null,""]
[21,122,"Oz Ekholm","Turun Pyrkivä",null,null,null,null,null,""]
[22,123,"Samuel Oporta","Turun Pyrkivä",null,null,null,null,null,""]
[23,124,"Juho Kanerva","Turun Urheiluliitto",null,null,null,null,null,""]
[24,125,"Olli Kanerva","Turun Urheiluliitto",null,null,null,null,null,""]
[25,126,"Sami Aalto","Turun Urheiluliitto",null,null,null,null,null,""]
[26,127,"Aaro Lamberg","Voimisteluseura Helsinki",null,null,null,null,null,""]
[27,128,"Jouko Koskinen","Voimisteluseura Helsinki",null,null,null,null,null,""]
[28,129,"Kasper Holopainen","Voimisteluseura Helsinki",null,null,null,null,null,""]
[29,130,"Petrus Laulumaa","Voimisteluseura Helsinki",null,null,null,null,null,""]
[30,131,"Timo Niemelä","Voimisteluseura Helsinki",null,null,null,null,null,""]
[31,132,"Tomi Tuuha","Voimisteluseura Helsinki",null,null,null,null,null,""]
[32,133,"Jarkko Pekkanen","Voimisteluseura Keski-Uusimaa",null,null,null,null,null,""]
[null,null,null,null,null,null,null,null,null,""]
[null,null,null,null,null,null,null,null,null,""]
[null,null,null,null,null,null,null,null,null,""]
[null,null,null,null,null,null,null,null,null,""]
[null,null,null,null,null,null,null,null,null,""]
[null,null,null,null,null,null,null,null,null,""]
[null,null,null,null,null,null,null,null,null,""]
[null,null,null,null,null,null,null,null,null,""]
[null,null,null,null,null,null,null,null,null,""]
[null,null,null,null,null,null,null,null,null,""]
[null,null,null,null,null,null,null,null,null,""]
[null,null,null,null,null,null,null,null,null,""]
[null,null,null,null,null,null,null,null,null,""]
[null,null,null,null,null,null,null,null,null,""]
[null,null,null,null,null,null,null,null,null,""]
[null,null,null,null,null,null,null,null,null,""]

{"sheet":"Asetukset","index":16,"n_rows":267,"n_cols":19,"rows_kept":267,"cut":false,"hidden":false,"merged":[]}
["Tällä sivulla on ohjelman asetuksia"]
["Asetuksen selitys",null,null,"yksikkö","Lisäselitystä"]
["Korostusväri tuloksen näyttämiseksi",null,36]
["Yhteensä perusväri",null,12,null,"#f8cf50","#eeddff"]
["Perusväri 2",null,"#F7CE40"]
["D-sarakkeen malli",null,9,null,"#F7CE40","#ff00ff",null,"R","G","B"]
[null,null,null,null,null,null,null,4,238,254,{"$f":"((\"#\"&DEC2HEX(H7,2))&DEC2HEX(I7,2))&DEC2HEX(J7,2)","v":"#04EEFE"},"#04EEFE"]
["Korostus kun tullaan suoritukseen",null,"Saku",null,null,null,null,234,8,24,{"$f":"((\"#\"&DEC2HEX(H8,2))&DEC2HEX(I8,2))&DEC2HEX(J8,2)","v":"#EA0818"},"#EA0818"]
["Automaattiset asetukset","Asetuksen nimi"]
["Tuloksen näyttöaika isona","tuloksennayttoaikaisona",0,"sek",null,null,null,234,238,4,{"$f":"((\"#\"&DEC2HEX(H10,2))&DEC2HEX(I10,2))&DEC2HEX(J10,2)","v":"#EAEE04"},"#EAEE04"]
["Tuloksen näyttöaika lajittelun jälkeen","tuloksennayttoaikalajittelunjalkeen",0,"sek",null,null,null,4,238,24,{"$f":"((\"#\"&DEC2HEX(H11,2))&DEC2HEX(I11,2))&DEC2HEX(J11,2)","v":"#04EE18"},"#04EE18"]
["Näytetäänkö suorittaja otsikossa","suorittajaOtsikossa",1,null,null,null,null,255,154,206,{"$f":"((\"#\"&DEC2HEX(H12,2))&DEC2HEX(I12,2))&DEC2HEX(J12,2)","v":"#FF9ACE"}]
["Näytä suorittaja taulukossa","suorittajaTaulukossa",1]
["Näytetäänkö finaaliin menijät","naytaFinaaliinMenijat",1]
["Kilpailijoita","kilpailijoidenMaara",{"$f":"COUNTA(Tulokset!C5:C44)","v":32}]
["Finaalissa kilpailijoita","kilpailijoidenMaaraFinaalissa",6]
["Finaali","isFinal",0,null,"Tähän 1 jos on finaali"]
["Viivoita tausta","viivoitaTausta",1,null,"Tähän 1 jos halutaan värjätä tausta joka toinen eri värillä"]
["Lomakkeen korkeus","appHeight",390]
["Lomakkeen leveys","appWidth",340]
[]
["Muita asetuksia"]
["Kuvatiedoston nimen alku",null,"http://users.jyu.fi/~vesal/kurssit/excel/tuloslaskenta/logot/"]
["Kuvatiedoston nimen loppu",null,"_p.png"]
[null,null,null,null,{"$f":"_xll.PISTEET(A25:D25,D24)","v":{"$error":"#NAME?"}},"",""]
[]
[]
[]
["Suorituspaikat",null,"Teline","Paikka"]
["Miehet",null,"Permanto",1]
[null,null,"Hevonen",2]
[null,null,"Renkaat",1]
[null,null,"Hyppy",2]
[null,null,"Nojapuut",1]
[null,null,"Rekki",2]
[]
["Naiset",null,"Hyppy",1]
[null,null,"Eritasonojapuut",2]
[null,null,"Puomi",1]
[null,null,"Permanto",2]
[]
[]
[]
["Nimetyt alueet"]
[]
[null,null,null,"Rekki",2]
[]
[null,"Naiset",null,"Hyppy",1]
[null,null,null,"Eritasonojapuut",2]
[null,null,null,"Puomi",1]
[null,null,null,"Permanto",2]
[]
[]
[]
[null,"Nimetyt alueet"]
[null,"suorittajaOtsikossa","Asetukset!C11"]
[null,"kuvaalku","Asetukset!C21"]
[null,"finaalissaKilpailijoita","Asetukset!C15"]
[null,"finaali","Asetukset!C17"]
[null,"kaavaAlue","Tulokset!E5:P34"]
[null,"korostusvari","Asetukset!C3"]
[null,"tuloksenTaustavari","Asetukset!C4"]
[null,"kilpailijoita","Asetukset!C14"]
[null,"naytaFinaaliinMenijat","Asetukset!C13"]
[null,"tulosalue","Tulokset!A5:R34"]
[null,"tuloksenTaustavari2","Asetukset!C5"]
[null,"kuvaloppu","Asetukset!C22"]
[null,"DsarakkeenMalli","Asetukset!C6"]
[null,"tuloksennayttoaikaisona","Asetukset!C9"]
[null,"suorituskorostus","Asetukset!C8"]
[null,"tuloksennayttoaikalajittelunjalkeen","Asetukset!C10"]
[null,"viivoitaTausta","Asetukset!C18"]
[null,"suorittajaTaulukossa","Asetukset!C12"]
[null,"appHeight","Asetukset!C19"]
[null,"appWidth","Asetukset!C20"]
[]
[]
[]
[]
[]
[]
[]
[]
[]
[]
[]
[]
[]
[]
[]
[]
[]
[]
[]
[]
[]
[]
[]
[]
[]
[]
[]
[]
[]
[]
[]
[]
[]
[]
[]
[]
[]
[]
[]
[]
[]
[]
[]
[]
[" "]
["riviä loppuun."]
[" "]
[1]
["Asetuksen selitys==="]
[]
["==="]
["Asetuksen selitys"]
[35]
[null,"palauta loppu"]
[5]
[null,1,2,"Sami Salo","STV",3,11.15,6,15.75,4,10.6,2,10,1,9,4.9000000000000004,13.95,70.45,0]
[6]
[null,2,8,"Teemu Selänne","HTV",3,12,4,7,2,11,4,13,3,12,5,14.55,69.55,-0.9]
[7]
[null,3,4,"Ossi Väänänen","KTV",5,12.85,2,11,4,13,2,10,1.2,10.1,2,10.5,67.45,-3]
[8]
[null,4,1,"Kari Lehtonen","HTV",3,7.5,1,10,2,11,1,10,5.2,13.9,52.4,-18.05]
[9]
[null,5,10,"Toni Rajala","HTV",6,15,1,10,3,10,3,12,3,12,59,-11.45]
[10]
[null,6,22,"Ville Leino","STV",2.2000000000000002,10.55,2,11,3,12,6.2,15,1,10,58.55,-11.9]
[11]
[null,7,3,"Antti Jaatinen","KTV",1.7,10.050000000000001,3,11,1,10,3.2,12.25,43.3,-27.15]
[12]
[null,8,11,"Saku Koivu","HTV",4,12,2,9,4,13,1,8,42,-28.45]
[13]
[null,9,12,"Jani Tuppurainen","Jyvo",2,10.4,1,9.9,1,9,1,10,39.299999999999997,-31.15]
[14]
[null,10,15,"Juha-Pekka Hytönen","Jyvo",2,10.35,2,8.75,1,10,1,9,38.1,-32.35]
[15]
[null,11,6,"Teemu Pulkkinen","TTV",5,13.35,2,11,2,11,35.35,-35.1]
[16]
[null,12,23,"Ossi Louhivaara","Jyvo",1.8,9.8000000000000007,4,11.85,2,11,32.65,-37.799999999999997]
[17]
[null,13,17,"Jari Jääskeläinen","Jyvo",1.8,9.75,2,9.6,4.5,12.75,32.1,-38.35]
[18]
[null,14,14,"Pekka Jormakka","Jyvo",2.4,10.75,1.1000000000000001,8.6,2,10.9,30.25,-40.200000000000003]
[19]
[null,15,16,"Ville Peltonen","HTV",1.7,9.9,2,10.6,1,9,29.5,-40.950000000000003]
[20]
[null,16,29,"Petteri Nokelainen","KTV",2.6,11.15,1,9.9,21.05,-49.4]
[21]
[null,17,21,"Teemu Eronen","HTV",1.8,9.8000000000000007,2,11,20.8,-49.65]
[22]
[null,18,27,"Juha Lind","STV",2.2000000000000002,10.15,1,9,19.149999999999999,-51.3]
[23]
[null,19,41,"Antti Pihlström","Jyvo",1.8,5,14,14,-56.45]
[24]
[null,20,40,"Sami Lepistö","KTV",2.6,1,11,11,-59.45]
[25]
[null,21,36,"Marko Tuulola","KTV",2.9,2,11,11,-59.45]
[26]
[null,22,58,"Nico Manelius","KTV",2.2999999999999998,2,11,11,-59.45]
[27]
[null,23,50,"Tommi Kivistö","KTV",2.1,2,11,11,-59.45]
[28]
[null,24,28,"Jani Rita","HYV",2.2000000000000002,10.5,10.5,-59.95]
[29]
[null,25,25,"Jukka Hentunen","HTV",1.7,9.9499999999999993,9.9499999999999993,-60.5]
[30]
[null,26,35,"Mika Järvinen","KTV",2.6,1,9.9,9.9,-60.55]
[31]
[null,27,44,"Sami Vatanen","Jyvo",1.6,0,-70.45]
[32]
[null,28,47,"Janne Lahti","Jyvo",2,0,-70.45]
[33]
[null,29,49,"Tuomas Pihlman","Jokerit",2.2000000000000002,0,-70.45]
[34]
[null,30,64,"Mikael Granlund","HIFK",2.6,0,-70.45]
[35]
[null,"palauta loppu"]
[10]
[null,"Tuloksen näyttöaika lajittelun jälkeen","tuloksennayttoaikalajittelunjalkeen",0,"sek",4,238,24,"#04EE18","#04EE18"]
[35]
[null,"palauta loppu"]
[35]
[null,"palauta loppu"]
[1]
[null,8,"Teemu Selänne","HTV",3,12]
[2]
[null,"Permanto"]
[3]
[null,0,"Nr","Nimi","Seura","D","väh","E","Yhteensä"]
[4]
[null,1,10,"Toni Rajala",3,0,9,12]
[5]
[null,2,8,"Teemu Selänne",3,0,9,12]
[6]
[null,3,11,"Saku Koivu",4,1,9,12]
[7]
[null,4,22,"Ville Leino",2.2000000000000002,0.4,8.75,10.55]
[8]
[null,5,1,"Kari Lehtonen"]
[9]
[null,6,12,"Jani Tuppurainen"]
[10]
[null,7,2,"Sami Salo"]
[11]
[null,8,15,"Juha-Pekka Hytönen"]
[13]
[null,2,"Sami Salo","STV",6,15.75]
[14]
[null,"Hevonen"]
[15]
[null,0,"Nr","Nimi","Seura","D","väh","E","Yhteensä"]
[16]
[null,1,2,"Sami Salo",6,0,9.75,15.75]
[17]
[null,2,22,"Ville Leino",2,0,9,11]
[18]
[null,3,10,"Toni Rajala",1,0,9,10]
[19]
[null,4,1,"Kari Lehtonen",1,0,9,10,"tie"]
[20]
[null,5,12,"Jani Tuppurainen"]
[21]
[null,6,11,"Saku Koivu"]
[22]
[null,7,8,"Teemu Selänne"]
[23]
[null,8,15,"Juha-Pekka Hytönen"]
[35]
[null,"palauta loppu"]
[34]
[null,6056]
["Alueen nimet"]
["Lempinimi:","Ohje"]
[null,null,"×"]
[null,null,"×"]
[null,null,"×"]
[null,null,"×"]
[null,null,"×"]
[null,null,"×"]
[null,null,"×"]
[null,null,"×"]
[null,null,"×"]
[null,null,"×"]
[null,null,"×"]
[null,null,"×"]
[null,null,"×"]
[null,null,"×"]
[null,null,"×"]
[null,null,"×"]
[null,null,"×"]
[null,null,"×"]
[null,null,"×"]
[null,null,"×"]

{"sheet":"Tulostus","index":17,"n_rows":36,"n_cols":17,"rows_kept":36,"cut":false,"hidden":false,"merged":[[2,0,2,2],[0,3,0,7]]}
[null,null,null,"Suomen                            mestaruuskilpailut            Jyväskylä 17.4.2011"]
[]
["Miesten 6-ottelu",null,null,null,"Permanto",{"$f":"Permanto!$M$1","v":""},"Hevonen",{"$f":"Hevonen!$M$1","v":""},"Renkaat",{"$f":"Renkaat!$M$1","v":""},"Hyppy",{"$f":"Hyppy!$M$1","v":""},"Nojapuut",{"$f":"Nojapuut!$M$1","v":""},"Rekki",{"$f":"Rekki!$M$1","v":""}]
[0,"Nr","Nimi","Seura","D","yht","D","yht","D","yht","D","yht","D","yht","D","yht","Yhteensä"]
[1,102,"Heikki Niva","Espoon Telinetaiturit",2.5,10.65,2,8,2,9.6,1,10,1,9,4.9000000000000004,13.95,61.2]
[2,103,"Ilkka Kuusela","Espoon Telinetaiturit",1.9,9.75,1,10.7,null,null,1,10,1.2,10.1,2,10.5,51.05]
[3,104,"Milo Siivonen","Espoon Telinetaiturit",2,9.65,null,null,9,17,2,10,null,null,3,12,48.65]
[4,105,"Oskar Kirmes","Espoon Telinetaiturit",2.5,10.25,2,9,2,9,3.2,11,null,null,1,8,47.25]
[5,106,"Henrik Petterson","Helsingfors Gymnastikklubb",2.2999999999999998,10.7,null,null,2,11,1,9.9499999999999993,null,null,5,14.55,46.2]
[6,107,"Artturi Lobski","Jyväskylän Voimistelijat",1.8,10.1,3,12.7,null,null,1,10,null,null,3.2,12.25,45.05]
[7,108,"Heikki Saarenketo","Jyväskylän Voimistelijat",2.4,12.05,null,null,1,10,1,9,null,null,1,10,41.05]
[8,109,"Janne Haapajoki","Jyväskylän Voimistelijat",3,11.2,1,10,null,null,null,null,null,null,5.2,13.9,35.1]
[9,110,"Jarkko Harju","Jyväskylän Voimistelijat",5,13.35,1,10.7,null,null,null,null,2,11,null,null,35.049999999999997]
[10,111,"Leevi Aihos","Jyväskylän Voimistelijat",1.8,10,null,null,2,10.6,null,null,1,9,null,null,29.6]
[11,112,"Pavel Titov","Jyväskylän Voimistelijat",2.2000000000000002,null,null,null,4,13,null,null,1,10.000889223333299,null,null,23.000889223333299]
[12,113,"Sakari Vekki","Jyväskylän Voimistelijat",1.8,null,null,null,2,9.6,null,null,null,null,4.5,12.7508090504167,22.3508090504167]
[13,114,"Jimi Päivänen","Kotkan Telinevoimistelijat",2.4,10.75,null,null,1.1000000000000001,8.6,2,null,null,null,null,null,19.350000000000001]
[14,115,"Markku Leinonen","Kotkan Telinevoimistelijat",2.1,null,null,null,2,8.85,null,null,1,9,null,null,17.850000000000001]
[15,116,"Arttu Kesti","Oulun Pyrintö",1.8,null,null,null,null,null,null,null,5,14,null,null,14]
[16,117,"Konsta Huuki","Oulun Pyrintö",2.6,11.15,null,null,null,null,null,null,null,null,null,null,11.15]
[17,118,"Kim Junna","Taipumattomat",2.6,null,null,null,null,null,null,null,null,null,1,11.000999992500001,11.000999992500001]
[18,119,"Mikael Miettinen","Tampereen Sisu",2.2999999999999998,null,null,null,null,null,null,null,null,null,2,11.0008926439167,11.0008926439167]
[19,120,"Ville Hynninen","Tampereen Sisu",2.1,null,null,null,null,null,null,null,null,null,2,11.0008926105833,11.0008926105833]
[20,121,"Aaron Hotanen","Turun Pyrkivä",2.9,null,null,null,null,null,null,null,null,null,2,11.000889223333299,11.000889223333299]
[21,122,"Oz Ekholm","Turun Pyrkivä",1.8,null,null,null,null,null,null,null,2,11.000889223333299,null,null,11.000889223333299]
[22,123,"Samuel Oporta","Turun Pyrkivä",2.2000000000000002,null,null,null,null,null,null,null,1,9,null,null,9]
[23,124,"Juho Kanerva","Turun Urheiluliitto",2.2000000000000002,null,null,null,null,null,null,null,null,null,null,null,0]
[24,125,"Olli Kanerva","Turun Urheiluliitto",2.1,null,null,null,null,null,null,null,null,null,null,null,0]
[25,126,"Sami Aalto","Turun Urheiluliitto",2,null,null,null,null,null,null,null,null,null,null,null,0]
[26,127,"Aaro Lamberg","Voimisteluseura Helsinki",2.6,null,null,null,null,null,null,null,null,null,null,null,0]
[27,128,"Jouko Koskinen","Voimisteluseura Helsinki",2.6,null,null,null,null,null,null,null,null,null,null,null,0]
[28,129,"Kasper Holopainen","Voimisteluseura Helsinki"]
[29,130,"Petrus Laulumaa","Voimisteluseura Helsinki",1.6,null,null,null,null,null,null,null,null,null,null,null,0]
[30,131,"Timo Niemelä","Voimisteluseura Helsinki"]
[31,132,"Tomi Tuuha","Voimisteluseura Helsinki",1.7,null,null,null,null,null,null,null,null,null,null,null,0]
[32,133,"Jarkko Pekkanen","Voimisteluseura Keski-Uusimaa",1.8,null,null,null,null,null,null,null,null,null,null,null,0]